{"text_format":"3","workbook":"xlsx","n_sheets":2,"sheets":["СПИСОК","ПОБЕДИТЕЛИ И ПРИЗЕРЫ"],"read":"whole","date_system":"1900"}

{"sheet":"СПИСОК","index":0,"n_rows":113,"n_cols":11,"rows_kept":113,"merged":[[3,1,3,10],[4,7,4,10],[5,7,5,10],[7,1,7,10],[8,1,8,10],[11,2,11,6],[13,2,13,6],[20,1,20,10],[21,2,21,10]]}
[{"$nulls":10},"Приложение 5"]
[{"$nulls":10},"Форма 2"]
[{"$nulls":5},"ПРОТОКОЛ"]
[null,"заседания жюри по подведению итогов, определению победителей и призеров \nшкольного этапа всероссийской  олимпиады школьников"]
[{"$nulls":7},"предмет русский язык"]
[null,"2025-10-03",{"$nulls":5},"город  (район) Волгодонск"]
[]
["\n","На заседании присутствовали ___________6___________________ членов жюри.\nПовестка: Подведение итогов школьного этапа всероссийской  олимпиады школьников \nпо русскому языку_______________________________________________________, \nутверждение списка победителей и призеров.\nВыступал: председатель жюри   Поршина Юлия Яковлевна.\nГолосование членов  жюри:\n\"за\"   ___________6_________________\n\"против\" _________0________________"]
[null,"Решение: подвести итоги школьного этапа всероссийской  олимпиады школьников  \nпо русскому языку (приложение 1) и утвердить список победителей и призеров (приложение 2)."]
[]
[null,null,"Ф.И.О. (полностью)","Место работы","Должность","Ученая степень","Подпись"]
[null,null,"Председатель жюри"]
[null,null,"Поршина Юлия Яковлевна","МБОУ СШ №23 г.Волгодонска","заместитель директора по УВР","нет"]
[null,null,"Члены жюри"]
[null,null,"Артюхов Олег Викторович","МБОУ СШ №23 г.Волгодонска","учитель","нет"]
[null,null,"Дегурко Татьяна Валентиновна","МБОУ СШ №23 г.Волгодонска","учитель","нет"]
[null,null,"Лбова Надежда Владимировна","МБОУ СШ №23 г.Волгодонска","учитель","нет"]
[null,null,"Мкоян Оксана Рафаеловна","МБОУ СШ №23 г.Волгодонска","учитель","нет"]
[null,null,"Соина Ольга Сергеевна","МБОУ СШ №23 г.Волгодонска","учитель","нет"]
[null,null,"(м.п.)"]
[null,"Приложение 1"]
[null,null,"Итоги школьного этапа всероссийской  олимпиады школьников  \nпо русскому языку\nв 2025/2026 учебном году"]
[]
[null,"№ п/п","Фамилия","Имя","Отчество","Дата рождения","Класс обучения","Класс участия","Образовательное учреждение","Результат (балл)"]
[null,1,"Горбенко","Елизавета","Сергеевна","2011-03-23",8,8,"МБОУ СШ №23 г.Волгодонска",87]
[null,2,"Сидоренко ","Алексей ","Дмитриевич","2014-10-25",4,4,"МБОУ СШ №23 г.Волгодонска",86]
[null,3,"Поземирова","Варвара","Викторовна","2015-10-03",4,4,"МБОУ СШ №23 г.Волгодонска",80]
[null,4,"Мирошникова","Мария","Трофимовна","2015-10-02",4,4,"МБОУ СШ №23 г.Волгодонска",77]
[null,5,"Рябова ","Яна ","Витальевна","2015-10-09",4,4,"МБОУ СШ №23 г.Волгодонска",74]
[null,6,"Синельникова","София","Олеговна","2015-07-02",4,4,"МБОУ СШ №23 г.Волгодонска",73]
[null,7,"Шумилова ","Анна ","Олеговна","2009-04-24",10,10,"МБОУ СШ №23 г.Волгодонска",70]
[null,8,"Марченко"," Илья ","Витальевич","2015-03-05",4,4,"МБОУ СШ №23 г.Волгодонска",70]
[null,9,"Старостина ","Юлия","Алексеевна","2009-07-28",10,10,"МБОУ СШ №23 г.Волгодонска",68]
[null,10,"Булыгина ","Алена","Ивановна","2015-09-17",4,4,"МБОУ СШ №23 г.Волгодонска",67]
[null,11,"Артюхов","Артемий","Олегович","2010-06-10",9,9,"МБОУ СШ №23 г.Волгодонска",63]
[null,12,"Попов","Назар","Иванович","2015-05-03",4,4,"МБОУ СШ №23 г.Волгодонска",63]
[null,13,"Севостьянихин","Владимир","Евгеньевич","2015-07-20",4,4,"МБОУ СШ №23 г.Волгодонска",63]
[null,14,"Гаев ","Иван","Константинович","2015-07-03",4,4,"МБОУ СШ №23 г.Волгодонска",63]
[null,15,"МойяЕловая","Давид","Анатолий","2014-10-28",4,4,"МБОУ СШ №23 г.Волгодонска",63]
[null,16,"Роженцова ","Влада ","Дмитриевна","2015-06-28",4,4,"МБОУ СШ №23 г.Волгодонска",62]
[null,17,"Репухова ","Милена","Алексеевна","2010-03-12",9,9,"МБОУ СШ №23 г.Волгодонска",62]
[null,18,"Карлов ","Владислав","Дмитриевич","2013-09-09",6,6,"МБОУ СШ №23 г.Волгодонска",61]
[null,19,"Васильева","Анастасия ","Сергеевна","2010-12-27",9,9,"МБОУ СШ №23 г.Волгодонска",61]
[null,20,"Калинина ","Кристина ","Анатольевна","2015-08-02",4,4,"МБОУ СШ №23 г.Волгодонска",60]
[null,21,"Казимов ","Ислам","Имамович","2011-01-09",8,8,"МБОУ СШ №23 г.Волгодонска",58]
[null,22,"Назыров ","Артём ","Дмитриевич","2015-07-25",4,4,"МБОУ СШ №23 г.Волгодонска",58]
[null,23,"Крымская","Виолетта","Олеговна","2011-12-23",8,8,"МБОУ СШ №23 г.Волгодонска",57]
[null,24,"Симонова","Дарья ","Алексеевна","2010-10-02",9,9,"МБОУ СШ №23 г.Волгодонска",57]
[null,25,"Алиев ","Камиль","Сергеевич","2015-06-16",4,4,"МБОУ СШ №23 г.Волгодонска",57]
[null,26,"Иванова ","Кира","Максимовна","2010-01-16",9,9,"МБОУ СШ №23 г.Волгодонска",57]
[null,27,"Бабаяна ","Грант-Давид ","Камоевич","2015-12-02",4,4,"МБОУ СШ №23 г.Волгодонска",44]
[null,28,"Батченко ","Анастасия ","Николаевна","2015-05-14",4,4,"МБОУ СШ №23 г.Волгодонска",56]
[null,29,"Онищенко ","Дарья ","Андреевна","2010-07-26",9,9,"МБОУ СШ №23 г.Волгодонска",44]
[null,30,"Диденко ","Таисия","Павловна","2010-11-18",9,9,"МБОУ СШ №23 г.Волгодонска",44]
[null,31,"Кравец","Владимир","Александрович","2015-05-28",4,4,"МБОУ СШ №23 г.Волгодонска",44]
[null,32,"Грищенко ","Вероника ","Дмитриевна","2015-04-10",4,4,"МБОУ СШ №23 г.Волгодонска",44]
[null,33,"Корнева","Ева","Романовна","2015-06-10",4,4,"МБОУ СШ №23 г.Волгодонска",44]
[null,34,"Рамазанов ","Ислам","Ильгарович","2013-07-02",6,6,"МБОУ СШ №23 г.Волгодонска",49]
[null,35,"Фаттахова","Эмма","Альбертовна","2016-01-16",4,4,"МБОУ СШ №23 г.Волгодонска",44]
[null,36,"Кривошеева","Виктория ","Александровна","2010-01-07",9,9,"МБОУ СШ №23 г.Волгодонска",44]
[null,37,"Растворова","Анна","Сергеевна","2011-07-29",8,8,"МБОУ СШ №23 г.Волгодонска",47]
[null,38,"Воронина ","Ксения","Викторовна","2012-03-30",7,7,"МБОУ СШ №23 г.Волгодонска",44]
[null,39,"Квачёва ","Анастасия","Александровна","2015-05-14",4,4,"МБОУ СШ №23 г.Волгодонска",44]
[null,40,"Сергиенко ","Полина ","Евгеньевна","2015-11-26",4,4,"МБОУ СШ №23 г.Волгодонска",44]
[null,41,"Скребец","Полина","Сергеевна","2008-02-10",11,11,"МБОУ СШ №23 г.Волгодонска",44]
[null,42,"Лунёв","Максим","Иванович","2015-07-24",4,4,"МБОУ СШ №23 г.Волгодонска",46]
[null,43,"Осипчук ","Фёдор ","Константинович","2015-10-30",4,4,"МБОУ СШ №23 г.Волгодонска",46]
[null,44,"Рыганцева","Ксения ","Евгеньевна","2010-02-04",9,9,"МБОУ СШ №23 г.Волгодонска",44]
[null,45,"Павлова","Василиса","Ивановна","2014-11-13",4,4,"МБОУ СШ №23 г.Волгодонска",44]
[null,46,"Бахтин","Богдан","Владимирович","2015-04-17",4,4,"МБОУ СШ №23 г.Волгодонска",44]
[null,47,"Чернега ","Полина","Ильинична","2010-12-28",9,9,"МБОУ СШ №23 г.Волгодонска",43]
[null,48,"Скребец","Юлия","Сергеевна","2012-04-05",7,7,"МБОУ СШ №23 г.Волгодонска",42]
[null,49,"Стёпкина","Алена","Ивановна","2015-12-05",4,4,"МБОУ СШ №23 г.Волгодонска",42]
[null,50,"Манакова","Арина","Владимировна","2008-04-12",11,11,"МБОУ СШ №23 г.Волгодонска",41]
[null,51,"Калиновская","Полина","Александровна","2013-06-14",6,6,"МБОУ СШ №23 г.Волгодонска",40]
[null,52,"Рыльщикова ","Николь","Сергеевна","2012-01-21",7,7,"МБОУ СШ №23 г.Волгодонска",40]
[null,53,"Мещеряков","Артур","Аркадьевич","2015-05-22",4,4,"МБОУ СШ №23 г.Волгодонска",40]
[null,54,"Слепоконь","Маргарита","Алекеевна","2013-02-12",6,6,"МБОУ СШ №23 г.Волгодонска",38]
[null,55,"Коржов","Егор","Сергеевич","2015-03-07",4,4,"МБОУ СШ №23 г.Волгодонска",38]
[null,56,"Сухинин","Иван","Александрович","2015-11-24",4,4,"МБОУ СШ №23 г.Волгодонска",37]
[null,57,"Ильясбекова "," Надежда ","Руслановна","2015-01-13",4,4,"МБОУ СШ №23 г.Волгодонска",37]
[null,58,"Булавин","Арсений","Николаевич","2015-10-23",4,4,"МБОУ СШ №23 г.Волгодонска",36]
[null,59,"Гаджиев ","Ибрагим","Кайфуллаевич","2015-09-26",4,4,"МБОУ СШ №23 г.Волгодонска",34]
[null,60,"Куфтырёва ","Алиса","Максимовна","2015-09-10",4,4,"МБОУ СШ №23 г.Волгодонска",34]
[null,61,"Иванова","Алиса","Александровна","2015-04-04",4,4,"МБОУ СШ №23 г.Волгодонска",33]
[null,62,"Тааева","Амина","Мурадовна","2015-05-28",4,4,"МБОУ СШ №23 г.Волгодонска",32]
[null,63,"Григоренко","Дарья ","Сергеевна","2010-07-01",9,9,"МБОУ СШ №23 г.Волгодонска",30]
[null,64,"Алтунова ","Мерьем","Рамиловна","2015-06-18",4,4,"МБОУ СШ №23 г.Волгодонска",30]
[null,65,"Мещерякова","Виктория","Аркадьевна","2015-05-22",4,4,"МБОУ СШ №23 г.Волгодонска",30]
[null,66,"Цюнак","Арина","Дмитриевна","2015-11-27",4,4,"МБОУ СШ №23 г.Волгодонска",30]
[null,67,"Семенова ","Анастасия ","Николаевна","22.01.2016\n",4,4,"МБОУ СШ №23 г.Волгодонска",28]
[null,68,"Корченков ","Михаил ","Сергеевич","2013-05-07",6,6,"МБОУ СШ №23 г.Волгодонска",26]
[null,69,"Смирнов","Артем ","Алексеевич","2014-07-07",4,4,"МБОУ СШ №23 г.Волгодонска",25]
[null,70,"Бутаков","Иван","Александрович","2013-09-07",6,6,"МБОУ СШ №23 г.Волгодонска",23]
[null,71,"Бунеев ","Иван","Александрович","2015-04-15",4,4,"МБОУ СШ №23 г.Волгодонска",22]
[null,72,"Хайрутдинов","Егор","Олегович","2011-05-18",8,8,"МБОУ СШ №23 г.Волгодонска",21]
[null,73,"Колесников","Михаил","Константинович","2012-01-22",8,8,"МБОУ СШ №23 г.Волгодонска",19]
[null,74,"Лисицин","Амин","Русланович","2011-12-01",8,8,"МБОУ СШ №23 г.Волгодонска",19]
[null,75,"Пышкина","Софья","Николаевна","2015-09-30",4,4,"МБОУ СШ №23 г.Волгодонска",19]
[null,76,"Чайкина","Екатерина","Дмитриевна","2015-09-17",4,4,"МБОУ СШ №23 г.Волгодонска",17]
[null,77,"Азизов ","Альберт ","Оганесович","2015-06-21",4,4,"МБОУ СШ №23 г.Волгодонска",15]
[null,78,"Черкасенко ","Владимир ","Александрович","2015-07-18",4,4,"МБОУ СШ №23 г.Волгодонска",15]
[null,79,"Богословская","Анна","Павловна","2015-09-10",4,4,"МБОУ СШ №23 г.Волгодонска",14]
[null,80,"Бубукин","Дмитрий","Александрович","2015-04-10",4,4,"МБОУ СШ №23 г.Волгодонска",14]
[null,81,"Тузенкова ","Мираида ","Михайловна","2015-09-30",4,4,"МБОУ СШ №23 г.Волгодонска",12]
[null,82,"Гончарова","Ясения","Александровна","2015-08-10",4,4,"МБОУ СШ №23 г.Волгодонска",11]
[null,83,"Темежников","Егор","Константинович","2015-08-21",4,4,"МБОУ СШ №23 г.Волгодонска",10]
[null,84,"Головко","Марина","Николаевна","2015-01-26",4,4,"МБОУ СШ №23 г.Волгодонска",0]
[null,85,"Головко","Анастасия","Николаевна","2015-01-26",4,4,"МБОУ СШ №23 г.Волгодонска",0]
[]
[null,null,"Директор",null,"И.А. Титова"]
[]
[null,null,"печать"]

{"sheet":"ПОБЕДИТЕЛИ И ПРИЗЕРЫ","index":1,"n_rows":1818,"n_cols":11,"rows_kept":1818,"merged":[[1,1,1,10],[2,2,2,9]]}
[]
[null,"Приложение 2"]
[null,null,"Список победителей и призеров  школьного этапа всероссийской  олимпиады школьников  \nпо русскому языку\nв 2025/2026 учебном году"]
[]
[null,"№ п/п","Фамилия","Имя","Отчество","Дата рождения","Класс обучения","Класс участия","Образовательное учреждение","Результат (балл)","Тип диплома"]
[null,1,"Горбенко","Елизавета","Сергеевна","2011-03-23",8,8,"МБОУ СШ №23 г.Волгодонска",87,{"$f":"IF(J6=45,\"призер\",IF(J6=46,\"призер\",IF(J6=47,\"призер\",IF(J6=48,\"призер\",IF(J6=49,\"призер\",IF(J6=50,\"призер\",IF(J6=51,\"призер\",IF(J6=52,\"призер\",IF(J6=53,\"призер\",IF(J6=54,\"призер\",IF(J6=55,\"призер\",IF(J6=56,\"призер\",IF(J6=57,\"призер\",IF(J6=58,\"призер\",IF(J6=59,\"призер\",\"победитель\")))))))))))))))","v":"победитель"}]
[null,2,"Сидоренко ","Алексей ","Дмитриевич","2014-10-25",4,4,"МБОУ СШ №23 г.Волгодонска",86,{"$f":"IF(J7=45,\"призер\",IF(J7=46,\"призер\",IF(J7=47,\"призер\",IF(J7=48,\"призер\",IF(J7=49,\"призер\",IF(J7=50,\"призер\",IF(J7=51,\"призер\",IF(J7=52,\"призер\",IF(J7=53,\"призер\",IF(J7=54,\"призер\",IF(J7=55,\"призер\",IF(J7=56,\"призер\",IF(J7=57,\"призер\",IF(J7=58,\"призер\",IF(J7=59,\"призер\",\"победитель\")))))))))))))))","v":"победитель"}]
[null,3,"Поземирова","Варвара","Викторовна","2015-10-03",4,4,"МБОУ СШ №23 г.Волгодонска",80,{"$f":"IF(J8=45,\"призер\",IF(J8=46,\"призер\",IF(J8=47,\"призер\",IF(J8=48,\"призер\",IF(J8=49,\"призер\",IF(J8=50,\"призер\",IF(J8=51,\"призер\",IF(J8=52,\"призер\",IF(J8=53,\"призер\",IF(J8=54,\"призер\",IF(J8=55,\"призер\",IF(J8=56,\"призер\",IF(J8=57,\"призер\",IF(J8=58,\"призер\",IF(J8=59,\"призер\",\"победитель\")))))))))))))))","v":"победитель"}]
[null,4,"Мирошникова","Мария","Трофимовна","2015-10-02",4,4,"МБОУ СШ №23 г.Волгодонска",77,"победитель"]
[null,5,"Рябова ","Яна ","Витальевна","2015-10-09",4,4,"МБОУ СШ №23 г.Волгодонска",74,"победитель"]
[null,6,"Синельникова","София","Олеговна","2015-07-02",4,4,"МБОУ СШ №23 г.Волгодонска",73,"победитель"]
[null,7,"Шумилова ","Анна ","Олеговна","2009-04-24",10,10,"МБОУ СШ №23 г.Волгодонска",70,"победитель"]
[null,8,"Марченко"," Илья ","Витальевич","2015-03-05",4,4,"МБОУ СШ №23 г.Волгодонска",70,"победитель"]
[null,9,"Старостина ","Юлия","Алексеевна","2009-07-28",10,10,"МБОУ СШ №23 г.Волгодонска",68,"победитель"]
[null,10,"Булыгина ","Алена","Ивановна","2015-09-17",4,4,"МБОУ СШ №23 г.Волгодонска",67,"победитель"]
[null,11,"Артюхов","Артемий","Олегович","2010-06-10",9,9,"МБОУ СШ №23 г.Волгодонска",63,"победитель"]
[null,12,"Попов","Назар","Иванович","2015-05-03",4,4,"МБОУ СШ №23 г.Волгодонска",63,"победитель"]
[null,13,"Севостьянихин","Владимир","Евгеньевич","2015-07-20",4,4,"МБОУ СШ №23 г.Волгодонска",63,"победитель"]
[null,14,"Гаев ","Иван","Константинович","2015-07-03",4,4,"МБОУ СШ №23 г.Волгодонска",63,"победитель"]
[null,15,"МойяЕловая","Давид","Анатолий","2014-10-28",4,4,"МБОУ СШ №23 г.Волгодонска",63,"победитель"]
[null,16,"Роженцова ","Влада ","Дмитриевна","2015-06-28",4,4,"МБОУ СШ №23 г.Волгодонска",62,"победитель"]
[null,17,"Репухова ","Милена","Алексеевна","2010-03-12",9,9,"МБОУ СШ №23 г.Волгодонска",62,"победитель"]
[null,18,"Карлов ","Владислав","Дмитриевич","2013-09-09",6,6,"МБОУ СШ №23 г.Волгодонска",61,"победитель"]
[null,19,"Васильева","Анастасия ","Сергеевна","2010-12-27",9,9,"МБОУ СШ №23 г.Волгодонска",61,"победитель"]
[null,20,"Калинина ","Кристина ","Анатольевна","2015-08-02",4,4,"МБОУ СШ №23 г.Волгодонска",60,"победитель"]
[null,21,"Казимов ","Ислам","Имамович","2011-01-09",8,8,"МБОУ СШ №23 г.Волгодонска",58,"призер"]
[null,22,{"$nulls":8},"победитель"]
[null,23,{"$nulls":8},"победитель"]
[null,24,{"$nulls":8},"победитель"]
[null,25,{"$nulls":8},"победитель"]
[null,26,{"$nulls":8},"победитель"]
[null,27,{"$nulls":8},"победитель"]
[null,28,{"$nulls":8},"победитель"]
[null,29,{"$nulls":8},"победитель"]
[null,30,{"$nulls":8},"победитель"]
[null,31,{"$nulls":8},"победитель"]
[null,32,{"$nulls":8},"победитель"]
[null,33,{"$nulls":8},"победитель"]
[null,34,{"$nulls":8},"победитель"]
[null,35,{"$nulls":8},"победитель"]
[null,36,{"$nulls":8},"победитель"]
[null,37,{"$nulls":8},"победитель"]
[null,38,{"$nulls":8},"победитель"]
[null,39,{"$nulls":8},"победитель"]
[null,40,{"$nulls":8},"победитель"]
[null,41,{"$nulls":8},"победитель"]
[null,42,{"$nulls":8},"победитель"]
[null,43,{"$nulls":8},"победитель"]
[null,44,{"$nulls":8},"победитель"]
[null,45,{"$nulls":8},"победитель"]
[null,46,{"$nulls":8},"победитель"]
[null,47,{"$nulls":8},"победитель"]
[null,48,{"$nulls":8},"победитель"]
[null,49,{"$nulls":8},"победитель"]
[null,50,{"$nulls":8},"победитель"]
[null,51,{"$nulls":8},"победитель"]
[null,52,{"$nulls":8},"победитель"]
[null,53,{"$nulls":8},"победитель"]
[null,54,{"$nulls":8},"победитель"]
[null,55,{"$nulls":8},"победитель"]
[null,56,{"$nulls":8},"победитель"]
[null,57,{"$nulls":8},"победитель"]
[null,58,{"$nulls":8},"победитель"]
[null,59,{"$nulls":8},"победитель"]
[null,60,{"$nulls":8},"победитель"]
[null,61,{"$nulls":8},"победитель"]
[null,62,{"$nulls":8},"победитель"]
[null,63,{"$nulls":8},"победитель"]
[null,64,{"$nulls":8},"победитель"]
[null,65,{"$nulls":8},"победитель"]
[null,66,{"$nulls":8},"победитель"]
[null,67,{"$nulls":8},{"$f":"IF(J72=45,\"призер\",IF(J72=46,\"призер\",IF(J72=47,\"призер\",IF(J72=48,\"призер\",IF(J72=49,\"призер\",IF(J72=50,\"призер\",IF(J72=51,\"призер\",IF(J72=52,\"призер\",IF(J72=53,\"призер\",IF(J72=54,\"призер\",IF(J72=55,\"призер\",IF(J72=56,\"призер\",IF(J72=57,\"призер\",IF(J72=58,\"призер\",IF(J72=59,\"призер\",\"победитель\")))))))))))))))","v":"победитель"}]
[null,68,{"$nulls":8},"победитель"]
[null,69,{"$nulls":8},"победитель"]
[null,70,{"$nulls":8},"победитель"]
[null,71,{"$nulls":8},"победитель"]
[null,72,{"$nulls":8},"победитель"]
[null,73,{"$nulls":8},"победитель"]
[null,74,{"$nulls":8},"победитель"]
[null,75,{"$nulls":8},"победитель"]
[null,76,{"$nulls":8},"победитель"]
[null,77,{"$nulls":8},"победитель"]
[null,78,{"$nulls":8},"победитель"]
[null,79,{"$nulls":8},"победитель"]
[null,80,{"$nulls":8},"победитель"]
[null,81,{"$nulls":8},"победитель"]
[null,82,{"$nulls":8},"победитель"]
[null,83,{"$nulls":8},"победитель"]
[null,84,{"$nulls":8},"победитель"]
[null,85,{"$nulls":8},"победитель"]
[null,86,{"$nulls":8},"победитель"]
[null,87,{"$nulls":8},"победитель"]
[null,88,{"$nulls":8},"победитель"]
[null,89,{"$nulls":8},"победитель"]
[null,90,{"$nulls":8},"победитель"]
[null,91,{"$nulls":8},"победитель"]
[null,92,{"$nulls":8},"победитель"]
[null,93,{"$nulls":8},"победитель"]
[null,94,{"$nulls":8},"победитель"]
[null,95,{"$nulls":8},"победитель"]
[null,96,{"$nulls":8},"победитель"]
[null,97,{"$nulls":8},"победитель"]
[null,98,{"$nulls":8},"победитель"]
[null,99,{"$nulls":8},"победитель"]
[null,100,{"$nulls":8},"победитель"]
[null,101,{"$nulls":8},"победитель"]
[null,102,{"$nulls":8},"победитель"]
[null,103,{"$nulls":8},"победитель"]
[null,104,{"$nulls":8},"победитель"]
[null,105,{"$nulls":8},"победитель"]
[null,106,{"$nulls":8},"победитель"]
[null,107,{"$nulls":8},"победитель"]
[null,108,{"$nulls":8},"победитель"]
[null,109,{"$nulls":8},"победитель"]
[null,110,{"$nulls":8},"победитель"]
[null,111,{"$nulls":8},"победитель"]
[null,112,{"$nulls":8},"победитель"]
[null,113,{"$nulls":8},"победитель"]
[null,114,{"$nulls":8},"победитель"]
[null,115,{"$nulls":8},"победитель"]
[null,116,{"$nulls":8},"победитель"]
[null,117,{"$nulls":8},"победитель"]
[null,118,{"$nulls":8},"победитель"]
[null,119,{"$nulls":8},"победитель"]
[null,120,{"$nulls":8},"победитель"]
[null,121,{"$nulls":8},"победитель"]
[null,122,{"$nulls":8},"победитель"]
[null,123,{"$nulls":8},"победитель"]
[null,124,{"$nulls":8},"победитель"]
[null,125,{"$nulls":8},"победитель"]
[null,126,{"$nulls":8},"победитель"]
[null,127,{"$nulls":8},"победитель"]
[null,128,{"$nulls":8},"победитель"]
[null,129,{"$nulls":8},"победитель"]
[null,130,{"$nulls":8},"победитель"]
[null,131,{"$nulls":8},{"$f":"IF(J136=45,\"призер\",IF(J136=46,\"призер\",IF(J136=47,\"призер\",IF(J136=48,\"призер\",IF(J136=49,\"призер\",IF(J136=50,\"призер\",IF(J136=51,\"призер\",IF(J136=52,\"призер\",IF(J136=53,\"призер\",IF(J136=54,\"призер\",IF(J136=55,\"призер\",IF(J136=56,\"призер\",IF(J136=57,\"призер\",IF(J136=58,\"призер\",IF(J136=59,\"призер\",\"победитель\")))))))))))))))","v":"победитель"}]
[null,132,{"$nulls":8},"победитель"]
[null,133,{"$nulls":8},"победитель"]
[null,134,{"$nulls":8},"победитель"]
[null,135,{"$nulls":8},"победитель"]
[null,136,{"$nulls":8},"победитель"]
[null,137,{"$nulls":8},"победитель"]
[null,138,{"$nulls":8},"победитель"]
[null,139,{"$nulls":8},"победитель"]
[null,140,{"$nulls":8},"победитель"]
[null,141,{"$nulls":8},"победитель"]
[null,142,{"$nulls":8},"победитель"]
[null,143,{"$nulls":8},"победитель"]
[null,144,{"$nulls":8},"победитель"]
[null,145,{"$nulls":8},"победитель"]
[null,146,{"$nulls":8},"победитель"]
[null,147,{"$nulls":8},"победитель"]
[null,148,{"$nulls":8},"победитель"]
[null,149,{"$nulls":8},"победитель"]
[null,150,{"$nulls":8},"победитель"]
[null,151,{"$nulls":8},"победитель"]
[null,152,{"$nulls":8},"победитель"]
[null,153,{"$nulls":8},"победитель"]
[null,154,{"$nulls":8},"победитель"]
[null,155,{"$nulls":8},"победитель"]
[null,156,{"$nulls":8},"победитель"]
[null,157,{"$nulls":8},"победитель"]
[null,158,{"$nulls":8},"победитель"]
[null,159,{"$nulls":8},"победитель"]
[null,160,{"$nulls":8},"победитель"]
[null,161,{"$nulls":8},"победитель"]
[null,162,{"$nulls":8},"победитель"]
[null,163,{"$nulls":8},"победитель"]
[null,164,{"$nulls":8},"победитель"]
[null,165,{"$nulls":8},"победитель"]
[null,166,{"$nulls":8},"победитель"]
[null,167,{"$nulls":8},"победитель"]
[null,168,{"$nulls":8},"победитель"]
[null,169,{"$nulls":8},"победитель"]
[null,170,{"$nulls":8},"победитель"]
[null,171,{"$nulls":8},"победитель"]
[null,172,{"$nulls":8},"победитель"]
[null,173,{"$nulls":8},"победитель"]
[null,174,{"$nulls":8},"победитель"]
[null,175,{"$nulls":8},"победитель"]
[null,176,{"$nulls":8},"победитель"]
[null,177,{"$nulls":8},"победитель"]
[null,178,{"$nulls":8},"победитель"]
[null,179,{"$nulls":8},"победитель"]
[null,180,{"$nulls":8},"победитель"]
[null,181,{"$nulls":8},"победитель"]
[null,182,{"$nulls":8},"победитель"]
[null,183,{"$nulls":8},"победитель"]
[null,184,{"$nulls":8},"победитель"]
[null,185,{"$nulls":8},"победитель"]
[null,186,{"$nulls":8},"победитель"]
[null,187,{"$nulls":8},"победитель"]
[null,188,{"$nulls":8},"победитель"]
[null,189,{"$nulls":8},"победитель"]
[null,190,{"$nulls":8},"победитель"]
[null,191,{"$nulls":8},"победитель"]
[null,192,{"$nulls":8},"победитель"]
[null,193,{"$nulls":8},"победитель"]
[null,194,{"$nulls":8},"победитель"]
[null,195,{"$nulls":8},{"$f":"IF(J200=45,\"призер\",IF(J200=46,\"призер\",IF(J200=47,\"призер\",IF(J200=48,\"призер\",IF(J200=49,\"призер\",IF(J200=50,\"призер\",IF(J200=51,\"призер\",IF(J200=52,\"призер\",IF(J200=53,\"призер\",IF(J200=54,\"призер\",IF(J200=55,\"призер\",IF(J200=56,\"призер\",IF(J200=57,\"призер\",IF(J200=58,\"призер\",IF(J200=59,\"призер\",\"победитель\")))))))))))))))","v":"победитель"}]
[null,196,{"$nulls":8},"победитель"]
[null,197,{"$nulls":8},"победитель"]
[null,198,{"$nulls":8},"победитель"]
[null,199,{"$nulls":8},"победитель"]
[null,200,{"$nulls":8},"победитель"]
[null,201,{"$nulls":8},"победитель"]
[null,202,{"$nulls":8},"победитель"]
[null,203,{"$nulls":8},"победитель"]
[null,204,{"$nulls":8},"победитель"]
[null,205,{"$nulls":8},"победитель"]
[null,206,{"$nulls":8},"победитель"]
[null,207,{"$nulls":8},"победитель"]
[null,208,{"$nulls":8},"победитель"]
[null,209,{"$nulls":8},"победитель"]
[null,210,{"$nulls":8},"победитель"]
[null,211,{"$nulls":8},"победитель"]
[null,212,{"$nulls":8},"победитель"]
[null,213,{"$nulls":8},"победитель"]
[null,214,{"$nulls":8},"победитель"]
[null,215,{"$nulls":8},"победитель"]
[null,216,{"$nulls":8},"победитель"]
[null,217,{"$nulls":8},"победитель"]
[null,218,{"$nulls":8},"победитель"]
[null,219,{"$nulls":8},"победитель"]
[null,220,{"$nulls":8},"победитель"]
[null,221,{"$nulls":8},"победитель"]
[null,222,{"$nulls":8},"победитель"]
[null,223,{"$nulls":8},"победитель"]
[null,224,{"$nulls":8},"победитель"]
[null,225,{"$nulls":8},"победитель"]
[null,226,{"$nulls":8},"победитель"]
[null,227,{"$nulls":8},"победитель"]
[null,228,{"$nulls":8},"победитель"]
[null,229,{"$nulls":8},"победитель"]
[null,230,{"$nulls":8},"победитель"]
[null,231,{"$nulls":8},"победитель"]
[null,232,{"$nulls":8},"победитель"]
[null,233,{"$nulls":8},"победитель"]
[null,234,{"$nulls":8},"победитель"]
[null,235,{"$nulls":8},"победитель"]
[null,236,{"$nulls":8},"победитель"]
[null,237,{"$nulls":8},"победитель"]
[null,238,{"$nulls":8},"победитель"]
[null,239,{"$nulls":8},"победитель"]
[null,240,{"$nulls":8},"победитель"]
[null,241,{"$nulls":8},"победитель"]
[null,242,{"$nulls":8},"победитель"]
[null,243,{"$nulls":8},"победитель"]
[null,244,{"$nulls":8},"победитель"]
[null,245,{"$nulls":8},"победитель"]
[null,246,{"$nulls":8},"победитель"]
[null,247,{"$nulls":8},"победитель"]
[null,248,{"$nulls":8},"победитель"]
[null,249,{"$nulls":8},"победитель"]
[null,250,{"$nulls":8},"победитель"]
[null,251,{"$nulls":8},"победитель"]
[null,252,{"$nulls":8},"победитель"]
[null,253,{"$nulls":8},"победитель"]
[null,254,{"$nulls":8},"победитель"]
[null,255,{"$nulls":8},"победитель"]
[null,256,{"$nulls":8},"победитель"]
[null,257,{"$nulls":8},"победитель"]
[null,258,{"$nulls":8},"победитель"]
[null,259,{"$nulls":8},{"$f":"IF(J264=45,\"призер\",IF(J264=46,\"призер\",IF(J264=47,\"призер\",IF(J264=48,\"призер\",IF(J264=49,\"призер\",IF(J264=50,\"призер\",IF(J264=51,\"призер\",IF(J264=52,\"призер\",IF(J264=53,\"призер\",IF(J264=54,\"призер\",IF(J264=55,\"призер\",IF(J264=56,\"призер\",IF(J264=57,\"призер\",IF(J264=58,\"призер\",IF(J264=59,\"призер\",\"победитель\")))))))))))))))","v":"победитель"}]
[null,260,{"$nulls":8},"победитель"]
[null,261,{"$nulls":8},"победитель"]
[null,262,{"$nulls":8},"победитель"]
[null,263,{"$nulls":8},"победитель"]
[null,264,{"$nulls":8},"победитель"]
[null,265,{"$nulls":8},"победитель"]
[null,266,{"$nulls":8},"победитель"]
[null,267,{"$nulls":8},"победитель"]
[null,268,{"$nulls":8},"победитель"]
[null,269,{"$nulls":8},"победитель"]
[null,270,{"$nulls":8},"победитель"]
[null,271,{"$nulls":8},"победитель"]
[null,272,{"$nulls":8},"победитель"]
[null,273,{"$nulls":8},"победитель"]
[null,274,{"$nulls":8},"победитель"]
[null,275,{"$nulls":8},"победитель"]
[null,276,{"$nulls":8},"победитель"]
[null,277,{"$nulls":8},"победитель"]
[null,278,{"$nulls":8},"победитель"]
[null,279,{"$nulls":8},"победитель"]
[null,280,{"$nulls":8},"победитель"]
[null,281,{"$nulls":8},"победитель"]
[null,282,{"$nulls":8},"победитель"]
[null,283,{"$nulls":8},"победитель"]
[null,284,{"$nulls":8},"победитель"]
[null,285,{"$nulls":8},"победитель"]
[null,286,{"$nulls":8},"победитель"]
[null,287,{"$nulls":8},"победитель"]
[null,288,{"$nulls":8},"победитель"]
[null,289,{"$nulls":8},"победитель"]
[null,290,{"$nulls":8},"победитель"]
[null,291,{"$nulls":8},"победитель"]
[null,292,{"$nulls":8},"победитель"]
[null,293,{"$nulls":8},"победитель"]
[null,294,{"$nulls":8},"победитель"]
[null,295,{"$nulls":8},"победитель"]
[null,296,{"$nulls":8},"победитель"]
[null,297,{"$nulls":8},"победитель"]
[null,298,{"$nulls":8},"победитель"]
[null,299,{"$nulls":8},"победитель"]
[null,300,{"$nulls":8},"победитель"]
[null,301,{"$nulls":8},"победитель"]
[null,302,{"$nulls":8},"победитель"]
[null,303,{"$nulls":8},"победитель"]
[null,304,{"$nulls":8},"победитель"]
[null,305,{"$nulls":8},"победитель"]
[null,306,{"$nulls":8},"победитель"]
[null,307,{"$nulls":8},"победитель"]
[null,308,{"$nulls":8},"победитель"]
[null,309,{"$nulls":8},"победитель"]
[null,310,{"$nulls":8},"победитель"]
[null,311,{"$nulls":8},"победитель"]
[null,312,{"$nulls":8},"победитель"]
[null,313,{"$nulls":8},"победитель"]
[null,314,{"$nulls":8},"победитель"]
[null,315,{"$nulls":8},"победитель"]
[null,316,{"$nulls":8},"победитель"]
[null,317,{"$nulls":8},"победитель"]
[null,318,{"$nulls":8},"победитель"]
[null,319,{"$nulls":8},"победитель"]
[null,320,{"$nulls":8},"победитель"]
[null,321,{"$nulls":8},"победитель"]
[null,322,{"$nulls":8},"победитель"]
[null,323,{"$nulls":8},{"$f":"IF(J328=45,\"призер\",IF(J328=46,\"призер\",IF(J328=47,\"призер\",IF(J328=48,\"призер\",IF(J328=49,\"призер\",IF(J328=50,\"призер\",IF(J328=51,\"призер\",IF(J328=52,\"призер\",IF(J328=53,\"призер\",IF(J328=54,\"призер\",IF(J328=55,\"призер\",IF(J328=56,\"призер\",IF(J328=57,\"призер\",IF(J328=58,\"призер\",IF(J328=59,\"призер\",\"победитель\")))))))))))))))","v":"победитель"}]
[null,324,{"$nulls":8},"победитель"]
[null,325,{"$nulls":8},"победитель"]
[null,326,{"$nulls":8},"победитель"]
[null,327,{"$nulls":8},"победитель"]
[null,328,{"$nulls":8},"победитель"]
[null,329,{"$nulls":8},"победитель"]
[null,330,{"$nulls":8},"победитель"]
[null,331,{"$nulls":8},"победитель"]
[null,332,{"$nulls":8},"победитель"]
[null,333,{"$nulls":8},"победитель"]
[null,334,{"$nulls":8},"победитель"]
[null,335,{"$nulls":8},"победитель"]
[null,336,{"$nulls":8},"победитель"]
[null,337,{"$nulls":8},"победитель"]
[null,338,{"$nulls":8},"победитель"]
[null,339,{"$nulls":8},"победитель"]
[null,340,{"$nulls":8},"победитель"]
[null,341,{"$nulls":8},"победитель"]
[null,342,{"$nulls":8},"победитель"]
[null,343,{"$nulls":8},"победитель"]
[null,344,{"$nulls":8},"победитель"]
[null,345,{"$nulls":8},"победитель"]
[null,346,{"$nulls":8},"победитель"]
[null,347,{"$nulls":8},"победитель"]
[null,348,{"$nulls":8},"победитель"]
[null,349,{"$nulls":8},"победитель"]
[null,350,{"$nulls":8},"победитель"]
[null,351,{"$nulls":8},"победитель"]
[null,352,{"$nulls":8},"победитель"]
[null,353,{"$nulls":8},"победитель"]
[null,354,{"$nulls":8},"победитель"]
[null,355,{"$nulls":8},"победитель"]
[null,356,{"$nulls":8},"победитель"]
[null,357,{"$nulls":8},"победитель"]
[null,358,{"$nulls":8},"победитель"]
[null,359,{"$nulls":8},"победитель"]
[null,360,{"$nulls":8},"победитель"]
[null,361,{"$nulls":8},"победитель"]
[null,362,{"$nulls":8},"победитель"]
[null,363,{"$nulls":8},"победитель"]
[null,364,{"$nulls":8},"победитель"]
[null,365,{"$nulls":8},"победитель"]
[null,366,{"$nulls":8},"победитель"]
[null,367,{"$nulls":8},"победитель"]
[null,368,{"$nulls":8},"победитель"]
[null,369,{"$nulls":8},"победитель"]
[null,370,{"$nulls":8},"победитель"]
[null,371,{"$nulls":8},"победитель"]
[null,372,{"$nulls":8},"победитель"]
[null,373,{"$nulls":8},"победитель"]
[null,374,{"$nulls":8},"победитель"]
[null,375,{"$nulls":8},"победитель"]
[null,376,{"$nulls":8},"победитель"]
[null,377,{"$nulls":8},"победитель"]
[null,378,{"$nulls":8},"победитель"]
[null,379,{"$nulls":8},"победитель"]
[null,380,{"$nulls":8},"победитель"]
[null,381,{"$nulls":8},"победитель"]
[null,382,{"$nulls":8},"победитель"]
[null,383,{"$nulls":8},"победитель"]
[null,384,{"$nulls":8},"победитель"]
[null,385,{"$nulls":8},"победитель"]
[null,386,{"$nulls":8},"победитель"]
[null,387,{"$nulls":8},{"$f":"IF(J392=45,\"призер\",IF(J392=46,\"призер\",IF(J392=47,\"призер\",IF(J392=48,\"призер\",IF(J392=49,\"призер\",IF(J392=50,\"призер\",IF(J392=51,\"призер\",IF(J392=52,\"призер\",IF(J392=53,\"призер\",IF(J392=54,\"призер\",IF(J392=55,\"призер\",IF(J392=56,\"призер\",IF(J392=57,\"призер\",IF(J392=58,\"призер\",IF(J392=59,\"призер\",\"победитель\")))))))))))))))","v":"победитель"}]
[null,388,{"$nulls":8},"победитель"]
[null,389,{"$nulls":8},"победитель"]
[null,390,{"$nulls":8},"победитель"]
[null,391,{"$nulls":8},"победитель"]
[null,392,{"$nulls":8},"победитель"]
[null,393,{"$nulls":8},"победитель"]
[null,394,{"$nulls":8},"победитель"]
[null,395,{"$nulls":8},"победитель"]
[null,396,{"$nulls":8},"победитель"]
[null,397,{"$nulls":8},"победитель"]
[null,398,{"$nulls":8},"победитель"]
[null,399,{"$nulls":8},"победитель"]
[null,400,{"$nulls":8},"победитель"]
[null,401,{"$nulls":8},"победитель"]
[null,402,{"$nulls":8},"победитель"]
[null,403,{"$nulls":8},"победитель"]
[null,404,{"$nulls":8},"победитель"]
[null,405,{"$nulls":8},"победитель"]
[null,406,{"$nulls":8},"победитель"]
[null,407,{"$nulls":8},"победитель"]
[null,408,{"$nulls":8},"победитель"]
[null,409,{"$nulls":8},"победитель"]
[null,410,{"$nulls":8},"победитель"]
[null,411,{"$nulls":8},"победитель"]
[null,412,{"$nulls":8},"победитель"]
[null,413,{"$nulls":8},"победитель"]
[null,414,{"$nulls":8},"победитель"]
[null,415,{"$nulls":8},"победитель"]
[null,416,{"$nulls":8},"победитель"]
[null,417,{"$nulls":8},"победитель"]
[null,418,{"$nulls":8},"победитель"]
[null,419,{"$nulls":8},"победитель"]
[null,420,{"$nulls":8},"победитель"]
[null,421,{"$nulls":8},"победитель"]
[null,422,{"$nulls":8},"победитель"]
[null,423,{"$nulls":8},"победитель"]
[null,424,{"$nulls":8},"победитель"]
[null,425,{"$nulls":8},"победитель"]
[null,426,{"$nulls":8},"победитель"]
[null,427,{"$nulls":8},"победитель"]
[null,428,{"$nulls":8},"победитель"]
[null,429,{"$nulls":8},"победитель"]
[null,430,{"$nulls":8},"победитель"]
[null,431,{"$nulls":8},"победитель"]
[null,432,{"$nulls":8},"победитель"]
[null,433,{"$nulls":8},"победитель"]
[null,434,{"$nulls":8},"победитель"]
[null,435,{"$nulls":8},"победитель"]
[null,436,{"$nulls":8},"победитель"]
[null,437,{"$nulls":8},"победитель"]
[null,438,{"$nulls":8},"победитель"]
[null,439,{"$nulls":8},"победитель"]
[null,440,{"$nulls":8},"победитель"]
[null,441,{"$nulls":8},"победитель"]
[null,442,{"$nulls":8},"победитель"]
[null,443,{"$nulls":8},"победитель"]
[null,444,{"$nulls":8},"победитель"]
[null,445,{"$nulls":8},"победитель"]
[null,446,{"$nulls":8},"победитель"]
[null,447,{"$nulls":8},"победитель"]
[null,448,{"$nulls":8},"победитель"]
[null,449,{"$nulls":8},"победитель"]
[null,450,{"$nulls":8},"победитель"]
[null,451,{"$nulls":8},{"$f":"IF(J456=45,\"призер\",IF(J456=46,\"призер\",IF(J456=47,\"призер\",IF(J456=48,\"призер\",IF(J456=49,\"призер\",IF(J456=50,\"призер\",IF(J456=51,\"призер\",IF(J456=52,\"призер\",IF(J456=53,\"призер\",IF(J456=54,\"призер\",IF(J456=55,\"призер\",IF(J456=56,\"призер\",IF(J456=57,\"призер\",IF(J456=58,\"призер\",IF(J456=59,\"призер\",\"победитель\")))))))))))))))","v":"победитель"}]
[null,452,{"$nulls":8},"победитель"]
[null,453,{"$nulls":8},"победитель"]
[null,454,{"$nulls":8},"победитель"]
[null,455,{"$nulls":8},"победитель"]
[null,456,{"$nulls":8},"победитель"]
[null,457,{"$nulls":8},"победитель"]
[null,458,{"$nulls":8},"победитель"]
[null,459,{"$nulls":8},"победитель"]
[null,460,{"$nulls":8},"победитель"]
[null,461,{"$nulls":8},"победитель"]
[null,462,{"$nulls":8},"победитель"]
[null,463,{"$nulls":8},"победитель"]
[null,464,{"$nulls":8},"победитель"]
[null,465,{"$nulls":8},"победитель"]
[null,466,{"$nulls":8},"победитель"]
[null,467,{"$nulls":8},"победитель"]
[null,468,{"$nulls":8},"победитель"]
[null,469,{"$nulls":8},"победитель"]
[null,470,{"$nulls":8},"победитель"]
[null,471,{"$nulls":8},"победитель"]
[null,472,{"$nulls":8},"победитель"]
[null,473,{"$nulls":8},"победитель"]
[null,474,{"$nulls":8},"победитель"]
[null,475,{"$nulls":8},"победитель"]
[null,476,{"$nulls":8},"победитель"]
[null,477,{"$nulls":8},"победитель"]
[null,478,{"$nulls":8},"победитель"]
[null,479,{"$nulls":8},"победитель"]
[null,480,{"$nulls":8},"победитель"]
[null,481,{"$nulls":8},"победитель"]
[null,482,{"$nulls":8},"победитель"]
[null,483,{"$nulls":8},"победитель"]
[null,484,{"$nulls":8},"победитель"]
[null,485,{"$nulls":8},"победитель"]
[null,486,{"$nulls":8},"победитель"]
[null,487,{"$nulls":8},"победитель"]
[null,488,{"$nulls":8},"победитель"]
[null,489,{"$nulls":8},"победитель"]
[null,490,{"$nulls":8},"победитель"]
[null,491,{"$nulls":8},"победитель"]
[null,492,{"$nulls":8},"победитель"]
[null,493,{"$nulls":8},"победитель"]
[null,494,{"$nulls":8},"победитель"]
[null,495,{"$nulls":8},"победитель"]
[null,496,{"$nulls":8},"победитель"]
[null,497,{"$nulls":8},"победитель"]
[null,498,{"$nulls":8},"победитель"]
[null,499,{"$nulls":8},"победитель"]
[null,500,{"$nulls":8},"победитель"]
[null,501,{"$nulls":8},"победитель"]
[null,502,{"$nulls":8},"победитель"]
[null,503,{"$nulls":8},"победитель"]
[null,504,{"$nulls":8},"победитель"]
[null,505,{"$nulls":8},"победитель"]
[null,506,{"$nulls":8},"победитель"]
[null,507,{"$nulls":8},"победитель"]
[null,508,{"$nulls":8},"победитель"]
[null,509,{"$nulls":8},"победитель"]
[null,510,{"$nulls":8},"победитель"]
[null,511,{"$nulls":8},"победитель"]
[null,512,{"$nulls":8},"победитель"]
[null,513,{"$nulls":8},"победитель"]
[null,514,{"$nulls":8},"победитель"]
[null,515,{"$nulls":8},{"$f":"IF(J520=45,\"призер\",IF(J520=46,\"призер\",IF(J520=47,\"призер\",IF(J520=48,\"призер\",IF(J520=49,\"призер\",IF(J520=50,\"призер\",IF(J520=51,\"призер\",IF(J520=52,\"призер\",IF(J520=53,\"призер\",IF(J520=54,\"призер\",IF(J520=55,\"призер\",IF(J520=56,\"призер\",IF(J520=57,\"призер\",IF(J520=58,\"призер\",IF(J520=59,\"призер\",\"победитель\")))))))))))))))","v":"победитель"}]
[null,516,{"$nulls":8},"победитель"]
[null,517,{"$nulls":8},"победитель"]
[null,518,{"$nulls":8},"победитель"]
[null,519,{"$nulls":8},"победитель"]
[null,520,{"$nulls":8},"победитель"]
[null,521,{"$nulls":8},"победитель"]
[null,522,{"$nulls":8},"победитель"]
[null,523,{"$nulls":8},"победитель"]
[null,524,{"$nulls":8},"победитель"]
[null,525,{"$nulls":8},"победитель"]
[null,526,{"$nulls":8},"победитель"]
[null,527,{"$nulls":8},"победитель"]
[null,528,{"$nulls":8},"победитель"]
[null,529,{"$nulls":8},"победитель"]
[null,530,{"$nulls":8},"победитель"]
[null,531,{"$nulls":8},"победитель"]
[null,532,{"$nulls":8},"победитель"]
[null,533,{"$nulls":8},"победитель"]
[null,534,{"$nulls":8},"победитель"]
[null,535,{"$nulls":8},"победитель"]
[null,536,{"$nulls":8},"победитель"]
[null,537,{"$nulls":8},"победитель"]
[null,538,{"$nulls":8},"победитель"]
[null,539,{"$nulls":8},"победитель"]
[null,540,{"$nulls":8},"победитель"]
[null,541,{"$nulls":8},"победитель"]
[null,542,{"$nulls":8},"победитель"]
[null,543,{"$nulls":8},"победитель"]
[null,544,{"$nulls":8},"победитель"]
[null,545,{"$nulls":8},"победитель"]
[null,546,{"$nulls":8},"победитель"]
[null,547,{"$nulls":8},"победитель"]
[null,548,{"$nulls":8},"победитель"]
[null,549,{"$nulls":8},"победитель"]
[null,550,{"$nulls":8},"победитель"]
[null,551,{"$nulls":8},"победитель"]
[null,552,{"$nulls":8},"победитель"]
[null,553,{"$nulls":8},"победитель"]
[null,554,{"$nulls":8},"победитель"]
[null,555,{"$nulls":8},"победитель"]
[null,556,{"$nulls":8},"победитель"]
[null,557,{"$nulls":8},"победитель"]
[null,558,{"$nulls":8},"победитель"]
[null,559,{"$nulls":8},"победитель"]
[null,560,{"$nulls":8},"победитель"]
[null,561,{"$nulls":8},"победитель"]
[null,562,{"$nulls":8},"победитель"]
[null,563,{"$nulls":8},"победитель"]
[null,564,{"$nulls":8},"победитель"]
[null,565,{"$nulls":8},"победитель"]
[null,566,{"$nulls":8},"победитель"]
[null,567,{"$nulls":8},"победитель"]
[null,568,{"$nulls":8},"победитель"]
[null,569,{"$nulls":8},"победитель"]
[null,570,{"$nulls":8},"победитель"]
[null,571,{"$nulls":8},"победитель"]
[null,572,{"$nulls":8},"победитель"]
[null,573,{"$nulls":8},"победитель"]
[null,574,{"$nulls":8},"победитель"]
[null,575,{"$nulls":8},"победитель"]
[null,576,{"$nulls":8},"победитель"]
[null,577,{"$nulls":8},"победитель"]
[null,578,{"$nulls":8},"победитель"]
[null,579,{"$nulls":8},{"$f":"IF(J584=45,\"призер\",IF(J584=46,\"призер\",IF(J584=47,\"призер\",IF(J584=48,\"призер\",IF(J584=49,\"призер\",IF(J584=50,\"призер\",IF(J584=51,\"призер\",IF(J584=52,\"призер\",IF(J584=53,\"призер\",IF(J584=54,\"призер\",IF(J584=55,\"призер\",IF(J584=56,\"призер\",IF(J584=57,\"призер\",IF(J584=58,\"призер\",IF(J584=59,\"призер\",\"победитель\")))))))))))))))","v":"победитель"}]
[null,580,{"$nulls":8},"победитель"]
[null,581,{"$nulls":8},"победитель"]
[null,582,{"$nulls":8},"победитель"]
[null,583,{"$nulls":8},"победитель"]
[null,584,{"$nulls":8},"победитель"]
[null,585,{"$nulls":8},"победитель"]
[null,586,{"$nulls":8},"победитель"]
[null,587,{"$nulls":8},"победитель"]
[null,588,{"$nulls":8},"победитель"]
[null,589,{"$nulls":8},"победитель"]
[null,590,{"$nulls":8},"победитель"]
[null,591,{"$nulls":8},"победитель"]
[null,592,{"$nulls":8},"победитель"]
[null,593,{"$nulls":8},"победитель"]
[null,594,{"$nulls":8},"победитель"]
[null,595,{"$nulls":8},"победитель"]
[null,596,{"$nulls":8},"победитель"]
[null,597,{"$nulls":8},"победитель"]
[null,598,{"$nulls":8},"победитель"]
[null,599,{"$nulls":8},"победитель"]
[null,600,{"$nulls":8},"победитель"]
[null,601,{"$nulls":8},"победитель"]
[null,602,{"$nulls":8},"победитель"]
[null,603,{"$nulls":8},"победитель"]
[null,604,{"$nulls":8},"победитель"]
[null,605,{"$nulls":8},"победитель"]
[null,606,{"$nulls":8},"победитель"]
[null,607,{"$nulls":8},"победитель"]
[null,608,{"$nulls":8},"победитель"]
[null,609,{"$nulls":8},"победитель"]
[null,610,{"$nulls":8},"победитель"]
[null,611,{"$nulls":8},"победитель"]
[null,612,{"$nulls":8},"победитель"]
[null,613,{"$nulls":8},"победитель"]
[null,614,{"$nulls":8},"победитель"]
[null,615,{"$nulls":8},"победитель"]
[null,616,{"$nulls":8},"победитель"]
[null,617,{"$nulls":8},"победитель"]
[null,618,{"$nulls":8},"победитель"]
[null,619,{"$nulls":8},"победитель"]
[null,620,{"$nulls":8},"победитель"]
[null,621,{"$nulls":8},"победитель"]
[null,622,{"$nulls":8},"победитель"]
[null,623,{"$nulls":8},"победитель"]
[null,624,{"$nulls":8},"победитель"]
[null,625,{"$nulls":8},"победитель"]
[null,626,{"$nulls":8},"победитель"]
[null,627,{"$nulls":8},"победитель"]
[null,628,{"$nulls":8},"победитель"]
[null,629,{"$nulls":8},"победитель"]
[null,630,{"$nulls":8},"победитель"]
[null,631,{"$nulls":8},"победитель"]
[null,632,{"$nulls":8},"победитель"]
[null,633,{"$nulls":8},"победитель"]
[null,634,{"$nulls":8},"победитель"]
[null,635,{"$nulls":8},"победитель"]
[null,636,{"$nulls":8},"победитель"]
[null,637,{"$nulls":8},"победитель"]
[null,638,{"$nulls":8},"победитель"]
[null,639,{"$nulls":8},"победитель"]
[null,640,{"$nulls":8},"победитель"]
[null,641,{"$nulls":8},"победитель"]
[null,642,{"$nulls":8},"победитель"]
[null,643,{"$nulls":8},{"$f":"IF(J648=45,\"призер\",IF(J648=46,\"призер\",IF(J648=47,\"призер\",IF(J648=48,\"призер\",IF(J648=49,\"призер\",IF(J648=50,\"призер\",IF(J648=51,\"призер\",IF(J648=52,\"призер\",IF(J648=53,\"призер\",IF(J648=54,\"призер\",IF(J648=55,\"призер\",IF(J648=56,\"призер\",IF(J648=57,\"призер\",IF(J648=58,\"призер\",IF(J648=59,\"призер\",\"победитель\")))))))))))))))","v":"победитель"}]
[null,644,{"$nulls":8},"победитель"]
[null,645,{"$nulls":8},"победитель"]
[null,646,{"$nulls":8},"победитель"]
[null,647,{"$nulls":8},"победитель"]
[null,648,{"$nulls":8},"победитель"]
[null,649,{"$nulls":8},"победитель"]
[null,650,{"$nulls":8},"победитель"]
[null,651,{"$nulls":8},"победитель"]
[null,652,{"$nulls":8},"победитель"]
[null,653,{"$nulls":8},"победитель"]
[null,654,{"$nulls":8},"победитель"]
[null,655,{"$nulls":8},"победитель"]
[null,656,{"$nulls":8},"победитель"]
[null,657,{"$nulls":8},"победитель"]
[null,658,{"$nulls":8},"победитель"]
[null,659,{"$nulls":8},"победитель"]
[null,660,{"$nulls":8},"победитель"]
[null,661,{"$nulls":8},"победитель"]
[null,662,{"$nulls":8},"победитель"]
[null,663,{"$nulls":8},"победитель"]
[null,664,{"$nulls":8},"победитель"]
[null,665,{"$nulls":8},"победитель"]
[null,666,{"$nulls":8},"победитель"]
[null,667,{"$nulls":8},"победитель"]
[null,668,{"$nulls":8},"победитель"]
[null,669,{"$nulls":8},"победитель"]
[null,670,{"$nulls":8},"победитель"]
[null,671,{"$nulls":8},"победитель"]
[null,672,{"$nulls":8},"победитель"]
[null,673,{"$nulls":8},"победитель"]
[null,674,{"$nulls":8},"победитель"]
[null,675,{"$nulls":8},"победитель"]
[null,676,{"$nulls":8},"победитель"]
[null,677,{"$nulls":8},"победитель"]
[null,678,{"$nulls":8},"победитель"]
[null,679,{"$nulls":8},"победитель"]
[null,680,{"$nulls":8},"победитель"]
[null,681,{"$nulls":8},"победитель"]
[null,682,{"$nulls":8},"победитель"]
[null,683,{"$nulls":8},"победитель"]
[null,684,{"$nulls":8},"победитель"]
[null,685,{"$nulls":8},"победитель"]
[null,686,{"$nulls":8},"победитель"]
[null,687,{"$nulls":8},"победитель"]
[null,688,{"$nulls":8},"победитель"]
[null,689,{"$nulls":8},"победитель"]
[null,690,{"$nulls":8},"победитель"]
[null,691,{"$nulls":8},"победитель"]
[null,692,{"$nulls":8},"победитель"]
[null,693,{"$nulls":8},"победитель"]
[null,694,{"$nulls":8},"победитель"]
[null,695,{"$nulls":8},"победитель"]
[null,696,{"$nulls":8},"победитель"]
[null,697,{"$nulls":8},"победитель"]
[null,698,{"$nulls":8},"победитель"]
[null,699,{"$nulls":8},"победитель"]
[null,700,{"$nulls":8},"победитель"]
[null,701,{"$nulls":8},"победитель"]
[null,702,{"$nulls":8},"победитель"]
[null,703,{"$nulls":8},"победитель"]
[null,704,{"$nulls":8},"победитель"]
[null,705,{"$nulls":8},"победитель"]
[null,706,{"$nulls":8},"победитель"]
[null,707,{"$nulls":8},{"$f":"IF(J712=45,\"призер\",IF(J712=46,\"призер\",IF(J712=47,\"призер\",IF(J712=48,\"призер\",IF(J712=49,\"призер\",IF(J712=50,\"призер\",IF(J712=51,\"призер\",IF(J712=52,\"призер\",IF(J712=53,\"призер\",IF(J712=54,\"призер\",IF(J712=55,\"призер\",IF(J712=56,\"призер\",IF(J712=57,\"призер\",IF(J712=58,\"призер\",IF(J712=59,\"призер\",\"победитель\")))))))))))))))","v":"победитель"}]
[null,708,{"$nulls":8},"победитель"]
[null,709,{"$nulls":8},"победитель"]
[null,710,{"$nulls":8},"победитель"]
[null,711,{"$nulls":8},"победитель"]
[null,712,{"$nulls":8},"победитель"]
[null,713,{"$nulls":8},"победитель"]
[null,714,{"$nulls":8},"победитель"]
[null,715,{"$nulls":8},"победитель"]
[null,716,{"$nulls":8},"победитель"]
[null,717,{"$nulls":8},"победитель"]
[null,718,{"$nulls":8},"победитель"]
[null,719,{"$nulls":8},"победитель"]
[null,720,{"$nulls":8},"победитель"]
[null,721,{"$nulls":8},"победитель"]
[null,722,{"$nulls":8},"победитель"]
[null,723,{"$nulls":8},"победитель"]
[null,724,{"$nulls":8},"победитель"]
[null,725,{"$nulls":8},"победитель"]
[null,726,{"$nulls":8},"победитель"]
[null,727,{"$nulls":8},"победитель"]
[null,728,{"$nulls":8},"победитель"]
[null,729,{"$nulls":8},"победитель"]
[null,730,{"$nulls":8},"победитель"]
[null,731,{"$nulls":8},"победитель"]
[null,732,{"$nulls":8},"победитель"]
[null,733,{"$nulls":8},"победитель"]
[null,734,{"$nulls":8},"победитель"]
[null,735,{"$nulls":8},"победитель"]
[null,736,{"$nulls":8},"победитель"]
[null,737,{"$nulls":8},"победитель"]
[null,738,{"$nulls":8},"победитель"]
[null,739,{"$nulls":8},"победитель"]
[null,740,{"$nulls":8},"победитель"]
[null,741,{"$nulls":8},"победитель"]
[null,742,{"$nulls":8},"победитель"]
[null,743,{"$nulls":8},"победитель"]
[null,744,{"$nulls":8},"победитель"]
[null,745,{"$nulls":8},"победитель"]
[null,746,{"$nulls":8},"победитель"]
[null,747,{"$nulls":8},"победитель"]
[null,748,{"$nulls":8},"победитель"]
[null,749,{"$nulls":8},"победитель"]
[null,750,{"$nulls":8},"победитель"]
[null,751,{"$nulls":8},"победитель"]
[null,752,{"$nulls":8},"победитель"]
[null,753,{"$nulls":8},"победитель"]
[null,754,{"$nulls":8},"победитель"]
[null,755,{"$nulls":8},"победитель"]
[null,756,{"$nulls":8},"победитель"]
[null,757,{"$nulls":8},"победитель"]
[null,758,{"$nulls":8},"победитель"]
[null,759,{"$nulls":8},"победитель"]
[null,760,{"$nulls":8},"победитель"]
[null,761,{"$nulls":8},"победитель"]
[null,762,{"$nulls":8},"победитель"]
[null,763,{"$nulls":8},"победитель"]
[null,764,{"$nulls":8},"победитель"]
[null,765,{"$nulls":8},"победитель"]
[null,766,{"$nulls":8},"победитель"]
[null,767,{"$nulls":8},"победитель"]
[null,768,{"$nulls":8},"победитель"]
[null,769,{"$nulls":8},"победитель"]
[null,770,{"$nulls":8},"победитель"]
[null,771,{"$nulls":8},{"$f":"IF(J776=45,\"призер\",IF(J776=46,\"призер\",IF(J776=47,\"призер\",IF(J776=48,\"призер\",IF(J776=49,\"призер\",IF(J776=50,\"призер\",IF(J776=51,\"призер\",IF(J776=52,\"призер\",IF(J776=53,\"призер\",IF(J776=54,\"призер\",IF(J776=55,\"призер\",IF(J776=56,\"призер\",IF(J776=57,\"призер\",IF(J776=58,\"призер\",IF(J776=59,\"призер\",\"победитель\")))))))))))))))","v":"победитель"}]
[null,772,{"$nulls":8},"победитель"]
[null,773,{"$nulls":8},"победитель"]
[null,774,{"$nulls":8},"победитель"]
[null,775,{"$nulls":8},"победитель"]
[null,776,{"$nulls":8},"победитель"]
[null,777,{"$nulls":8},"победитель"]
[null,778,{"$nulls":8},"победитель"]
[null,779,{"$nulls":8},"победитель"]
[null,780,{"$nulls":8},"победитель"]
[null,781,{"$nulls":8},"победитель"]
[null,782,{"$nulls":8},"победитель"]
[null,783,{"$nulls":8},"победитель"]
[null,784,{"$nulls":8},"победитель"]
[null,785,{"$nulls":8},"победитель"]
[null,786,{"$nulls":8},"победитель"]
[null,787,{"$nulls":8},"победитель"]
[null,788,{"$nulls":8},"победитель"]
[null,789,{"$nulls":8},"победитель"]
[null,790,{"$nulls":8},"победитель"]
[null,791,{"$nulls":8},"победитель"]
[null,792,{"$nulls":8},"победитель"]
[null,793,{"$nulls":8},"победитель"]
[null,794,{"$nulls":8},"победитель"]
[null,795,{"$nulls":8},"победитель"]
[null,796,{"$nulls":8},"победитель"]
[null,797,{"$nulls":8},"победитель"]
[null,798,{"$nulls":8},"победитель"]
[null,799,{"$nulls":8},"победитель"]
[null,800,{"$nulls":8},"победитель"]
[null,801,{"$nulls":8},"победитель"]
[null,802,{"$nulls":8},"победитель"]
[null,803,{"$nulls":8},"победитель"]
[null,804,{"$nulls":8},"победитель"]
[null,805,{"$nulls":8},"победитель"]
[null,806,{"$nulls":8},"победитель"]
[null,807,{"$nulls":8},"победитель"]
[null,808,{"$nulls":8},"победитель"]
[null,809,{"$nulls":8},"победитель"]
[null,810,{"$nulls":8},"победитель"]
[null,811,{"$nulls":8},"победитель"]
[null,812,{"$nulls":8},"победитель"]
[null,813,{"$nulls":8},"победитель"]
[null,814,{"$nulls":8},"победитель"]
[null,815,{"$nulls":8},"победитель"]
[null,816,{"$nulls":8},"победитель"]
[null,817,{"$nulls":8},"победитель"]
[null,818,{"$nulls":8},"победитель"]
[null,819,{"$nulls":8},"победитель"]
[null,820,{"$nulls":8},"победитель"]
[null,821,{"$nulls":8},"победитель"]
[null,822,{"$nulls":8},"победитель"]
[null,823,{"$nulls":8},"победитель"]
[null,824,{"$nulls":8},"победитель"]
[null,825,{"$nulls":8},"победитель"]
[null,826,{"$nulls":8},"победитель"]
[null,827,{"$nulls":8},"победитель"]
[null,828,{"$nulls":8},"победитель"]
[null,829,{"$nulls":8},"победитель"]
[null,830,{"$nulls":8},"победитель"]
[null,831,{"$nulls":8},"победитель"]
[null,832,{"$nulls":8},"победитель"]
[null,833,{"$nulls":8},"победитель"]
[null,834,{"$nulls":8},"победитель"]
[null,835,{"$nulls":8},{"$f":"IF(J840=45,\"призер\",IF(J840=46,\"призер\",IF(J840=47,\"призер\",IF(J840=48,\"призер\",IF(J840=49,\"призер\",IF(J840=50,\"призер\",IF(J840=51,\"призер\",IF(J840=52,\"призер\",IF(J840=53,\"призер\",IF(J840=54,\"призер\",IF(J840=55,\"призер\",IF(J840=56,\"призер\",IF(J840=57,\"призер\",IF(J840=58,\"призер\",IF(J840=59,\"призер\",\"победитель\")))))))))))))))","v":"победитель"}]
[null,836,{"$nulls":8},"победитель"]
[null,837,{"$nulls":8},"победитель"]
[null,838,{"$nulls":8},"победитель"]
[null,839,{"$nulls":8},"победитель"]
[null,840,{"$nulls":8},"победитель"]
[null,841,{"$nulls":8},"победитель"]
[null,842,{"$nulls":8},"победитель"]
[null,843,{"$nulls":8},"победитель"]
[null,844,{"$nulls":8},"победитель"]
[null,845,{"$nulls":8},"победитель"]
[null,846,{"$nulls":8},"победитель"]
[null,847,{"$nulls":8},"победитель"]
[null,848,{"$nulls":8},"победитель"]
[null,849,{"$nulls":8},"победитель"]
[null,850,{"$nulls":8},"победитель"]
[null,851,{"$nulls":8},"победитель"]
[null,852,{"$nulls":8},"победитель"]
[null,853,{"$nulls":8},"победитель"]
[null,854,{"$nulls":8},"победитель"]
[null,855,{"$nulls":8},"победитель"]
[null,856,{"$nulls":8},"победитель"]
[null,857,{"$nulls":8},"победитель"]
[null,858,{"$nulls":8},"победитель"]
[null,859,{"$nulls":8},"победитель"]
[null,860,{"$nulls":8},"победитель"]
[null,861,{"$nulls":8},"победитель"]
[null,862,{"$nulls":8},"победитель"]
[null,863,{"$nulls":8},"победитель"]
[null,864,{"$nulls":8},"победитель"]
[null,865,{"$nulls":8},"победитель"]
[null,866,{"$nulls":8},"победитель"]
[null,867,{"$nulls":8},"победитель"]
[null,868,{"$nulls":8},"победитель"]
[null,869,{"$nulls":8},"победитель"]
[null,870,{"$nulls":8},"победитель"]
[null,871,{"$nulls":8},"победитель"]
[null,872,{"$nulls":8},"победитель"]
[null,873,{"$nulls":8},"победитель"]
[null,874,{"$nulls":8},"победитель"]
[null,875,{"$nulls":8},"победитель"]
[null,876,{"$nulls":8},"победитель"]
[null,877,{"$nulls":8},"победитель"]
[null,878,{"$nulls":8},"победитель"]
[null,879,{"$nulls":8},"победитель"]
[null,880,{"$nulls":8},"победитель"]
[null,881,{"$nulls":8},"победитель"]
[null,882,{"$nulls":8},"победитель"]
[null,883,{"$nulls":8},"победитель"]
[null,884,{"$nulls":8},"победитель"]
[null,885,{"$nulls":8},"победитель"]
[null,886,{"$nulls":8},"победитель"]
[null,887,{"$nulls":8},"победитель"]
[null,888,{"$nulls":8},"победитель"]
[null,889,{"$nulls":8},"победитель"]
[null,890,{"$nulls":8},"победитель"]
[null,891,{"$nulls":8},"победитель"]
[null,892,{"$nulls":8},"победитель"]
[null,893,{"$nulls":8},"победитель"]
[null,894,{"$nulls":8},"победитель"]
[null,895,{"$nulls":8},"победитель"]
[null,896,{"$nulls":8},"победитель"]
[null,897,{"$nulls":8},"победитель"]
[null,898,{"$nulls":8},"победитель"]
[null,899,{"$nulls":8},{"$f":"IF(J904=45,\"призер\",IF(J904=46,\"призер\",IF(J904=47,\"призер\",IF(J904=48,\"призер\",IF(J904=49,\"призер\",IF(J904=50,\"призер\",IF(J904=51,\"призер\",IF(J904=52,\"призер\",IF(J904=53,\"призер\",IF(J904=54,\"призер\",IF(J904=55,\"призер\",IF(J904=56,\"призер\",IF(J904=57,\"призер\",IF(J904=58,\"призер\",IF(J904=59,\"призер\",\"победитель\")))))))))))))))","v":"победитель"}]
[null,900,{"$nulls":8},"победитель"]
[null,901,{"$nulls":8},"победитель"]
[null,902,{"$nulls":8},"победитель"]
[null,903,{"$nulls":8},"победитель"]
[null,904,{"$nulls":8},"победитель"]
[null,905,{"$nulls":8},"победитель"]
[null,906,{"$nulls":8},"победитель"]
[null,907,{"$nulls":8},"победитель"]
[null,908,{"$nulls":8},"победитель"]
[null,909,{"$nulls":8},"победитель"]
[null,910,{"$nulls":8},"победитель"]
[null,911,{"$nulls":8},"победитель"]
[null,912,{"$nulls":8},"победитель"]
[null,913,{"$nulls":8},"победитель"]
[null,914,{"$nulls":8},"победитель"]
[null,915,{"$nulls":8},"победитель"]
[null,916,{"$nulls":8},"победитель"]
[null,917,{"$nulls":8},"победитель"]
[null,918,{"$nulls":8},"победитель"]
[null,919,{"$nulls":8},"победитель"]
[null,920,{"$nulls":8},"победитель"]
[null,921,{"$nulls":8},"победитель"]
[null,922,{"$nulls":8},"победитель"]
[null,923,{"$nulls":8},"победитель"]
[null,924,{"$nulls":8},"победитель"]
[null,925,{"$nulls":8},"победитель"]
[null,926,{"$nulls":8},"победитель"]
[null,927,{"$nulls":8},"победитель"]
[null,928,{"$nulls":8},"победитель"]
[null,929,{"$nulls":8},"победитель"]
[null,930,{"$nulls":8},"победитель"]
[null,931,{"$nulls":8},"победитель"]
[null,932,{"$nulls":8},"победитель"]
[null,933,{"$nulls":8},"победитель"]
[null,934,{"$nulls":8},"победитель"]
[null,935,{"$nulls":8},"победитель"]
[null,936,{"$nulls":8},"победитель"]
[null,937,{"$nulls":8},"победитель"]
[null,938,{"$nulls":8},"победитель"]
[null,939,{"$nulls":8},"победитель"]
[null,940,{"$nulls":8},"победитель"]
[null,941,{"$nulls":8},"победитель"]
[null,942,{"$nulls":8},"победитель"]
[null,943,{"$nulls":8},"победитель"]
[null,944,{"$nulls":8},"победитель"]
[null,945,{"$nulls":8},"победитель"]
[null,946,{"$nulls":8},"победитель"]
[null,947,{"$nulls":8},"победитель"]
[null,948,{"$nulls":8},"победитель"]
[null,949,{"$nulls":8},"победитель"]
[null,950,{"$nulls":8},"победитель"]
[null,951,{"$nulls":8},"победитель"]
[null,952,{"$nulls":8},"победитель"]
[null,953,{"$nulls":8},"победитель"]
[null,954,{"$nulls":8},"победитель"]
[null,955,{"$nulls":8},"победитель"]
[null,956,{"$nulls":8},"победитель"]
[null,957,{"$nulls":8},"победитель"]
[null,958,{"$nulls":8},"победитель"]
[null,959,{"$nulls":8},"победитель"]
[null,960,{"$nulls":8},"победитель"]
[null,961,{"$nulls":8},"победитель"]
[null,962,{"$nulls":8},"победитель"]
[null,963,{"$nulls":8},{"$f":"IF(J968=45,\"призер\",IF(J968=46,\"призер\",IF(J968=47,\"призер\",IF(J968=48,\"призер\",IF(J968=49,\"призер\",IF(J968=50,\"призер\",IF(J968=51,\"призер\",IF(J968=52,\"призер\",IF(J968=53,\"призер\",IF(J968=54,\"призер\",IF(J968=55,\"призер\",IF(J968=56,\"призер\",IF(J968=57,\"призер\",IF(J968=58,\"призер\",IF(J968=59,\"призер\",\"победитель\")))))))))))))))","v":"победитель"}]
[null,964,{"$nulls":8},"победитель"]
[null,965,{"$nulls":8},"победитель"]
[null,966,{"$nulls":8},"победитель"]
[null,967,{"$nulls":8},"победитель"]
[null,968,{"$nulls":8},"победитель"]
[null,969,{"$nulls":8},"победитель"]
[null,970,{"$nulls":8},"победитель"]
[null,971,{"$nulls":8},"победитель"]
[null,972,{"$nulls":8},"победитель"]
[null,973,{"$nulls":8},"победитель"]
[null,974,{"$nulls":8},"победитель"]
[null,975,{"$nulls":8},"победитель"]
[null,976,{"$nulls":8},"победитель"]
[null,977,{"$nulls":8},"победитель"]
[null,978,{"$nulls":8},"победитель"]
[null,979,{"$nulls":8},"победитель"]
[null,980,{"$nulls":8},"победитель"]
[null,981,{"$nulls":8},"победитель"]
[null,982,{"$nulls":8},"победитель"]
[null,983,{"$nulls":8},"победитель"]
[null,984,{"$nulls":8},"победитель"]
[null,985,{"$nulls":8},"победитель"]
[null,986,{"$nulls":8},"победитель"]
[null,987,{"$nulls":8},"победитель"]
[null,988,{"$nulls":8},"победитель"]
[null,989,{"$nulls":8},"победитель"]
[null,990,{"$nulls":8},"победитель"]
[null,991,{"$nulls":8},"победитель"]
[null,992,{"$nulls":8},"победитель"]
[null,993,{"$nulls":8},"победитель"]
[null,994,{"$nulls":8},"победитель"]
[null,995,{"$nulls":8},"победитель"]
[null,996,{"$nulls":8},"победитель"]
[null,997,{"$nulls":8},"победитель"]
[null,998,{"$nulls":8},"победитель"]
[null,999,{"$nulls":8},"победитель"]
[null,1000,{"$nulls":8},"победитель"]
[null,1001,{"$nulls":8},"победитель"]
[null,1002,{"$nulls":8},"победитель"]
[null,1003,{"$nulls":8},"победитель"]
[null,1004,{"$nulls":8},"победитель"]
[null,1005,{"$nulls":8},"победитель"]
[null,1006,{"$nulls":8},"победитель"]
[null,1007,{"$nulls":8},"победитель"]
[null,1008,{"$nulls":8},"победитель"]
[null,1009,{"$nulls":8},"победитель"]
[null,1010,{"$nulls":8},"победитель"]
[null,1011,{"$nulls":8},"победитель"]
[null,1012,{"$nulls":8},"победитель"]
[null,1013,{"$nulls":8},"победитель"]
[null,1014,{"$nulls":8},"победитель"]
[null,1015,{"$nulls":8},"победитель"]
[null,1016,{"$nulls":8},"победитель"]
[null,1017,{"$nulls":8},"победитель"]
[null,1018,{"$nulls":8},"победитель"]
[null,1019,{"$nulls":8},"победитель"]
[null,1020,{"$nulls":8},"победитель"]
[null,1021,{"$nulls":8},"победитель"]
[null,1022,{"$nulls":8},"победитель"]
[null,1023,{"$nulls":8},"победитель"]
[null,1024,{"$nulls":8},"победитель"]
[null,1025,{"$nulls":8},"победитель"]
[null,1026,{"$nulls":8},"победитель"]
[null,1027,{"$nulls":8},{"$f":"IF(J1032=45,\"призер\",IF(J1032=46,\"призер\",IF(J1032=47,\"призер\",IF(J1032=48,\"призер\",IF(J1032=49,\"призер\",IF(J1032=50,\"призер\",IF(J1032=51,\"призер\",IF(J1032=52,\"призер\",IF(J1032=53,\"призер\",IF(J1032=54,\"призер\",IF(J1032=55,\"призер\",IF(J1032=56,\"призер\",IF(J1032=57,\"призер\",IF(J1032=58,\"призер\",IF(J1032=59,\"призер\",\"победитель\")))))))))))))))","v":"победитель"}]
[null,1028,{"$nulls":8},"победитель"]
[null,1029,{"$nulls":8},"победитель"]
[null,1030,{"$nulls":8},"победитель"]
[null,1031,{"$nulls":8},"победитель"]
[null,1032,{"$nulls":8},"победитель"]
[null,1033,{"$nulls":8},"победитель"]
[null,1034,{"$nulls":8},"победитель"]
[null,1035,{"$nulls":8},"победитель"]
[null,1036,{"$nulls":8},"победитель"]
[null,1037,{"$nulls":8},"победитель"]
[null,1038,{"$nulls":8},"победитель"]
[null,1039,{"$nulls":8},"победитель"]
[null,1040,{"$nulls":8},"победитель"]
[null,1041,{"$nulls":8},"победитель"]
[null,1042,{"$nulls":8},"победитель"]
[null,1043,{"$nulls":8},"победитель"]
[null,1044,{"$nulls":8},"победитель"]
[null,1045,{"$nulls":8},"победитель"]
[null,1046,{"$nulls":8},"победитель"]
[null,1047,{"$nulls":8},"победитель"]
[null,1048,{"$nulls":8},"победитель"]
[null,1049,{"$nulls":8},"победитель"]
[null,1050,{"$nulls":8},"победитель"]
[null,1051,{"$nulls":8},"победитель"]
[null,1052,{"$nulls":8},"победитель"]
[null,1053,{"$nulls":8},"победитель"]
[null,1054,{"$nulls":8},"победитель"]
[null,1055,{"$nulls":8},"победитель"]
[null,1056,{"$nulls":8},"победитель"]
[null,1057,{"$nulls":8},"победитель"]
[null,1058,{"$nulls":8},"победитель"]
[null,1059,{"$nulls":8},"победитель"]
[null,1060,{"$nulls":8},"победитель"]
[null,1061,{"$nulls":8},"победитель"]
[null,1062,{"$nulls":8},"победитель"]
[null,1063,{"$nulls":8},"победитель"]
[null,1064,{"$nulls":8},"победитель"]
[null,1065,{"$nulls":8},"победитель"]
[null,1066,{"$nulls":8},"победитель"]
[null,1067,{"$nulls":8},"победитель"]
[null,1068,{"$nulls":8},"победитель"]
[null,1069,{"$nulls":8},"победитель"]
[null,1070,{"$nulls":8},"победитель"]
[null,1071,{"$nulls":8},"победитель"]
[null,1072,{"$nulls":8},"победитель"]
[null,1073,{"$nulls":8},"победитель"]
[null,1074,{"$nulls":8},"победитель"]
[null,1075,{"$nulls":8},"победитель"]
[null,1076,{"$nulls":8},"победитель"]
[null,1077,{"$nulls":8},"победитель"]
[null,1078,{"$nulls":8},"победитель"]
[null,1079,{"$nulls":8},"победитель"]
[null,1080,{"$nulls":8},"победитель"]
[null,1081,{"$nulls":8},"победитель"]
[null,1082,{"$nulls":8},"победитель"]
[null,1083,{"$nulls":8},"победитель"]
[null,1084,{"$nulls":8},"победитель"]
[null,1085,{"$nulls":8},"победитель"]
[null,1086,{"$nulls":8},"победитель"]
[null,1087,{"$nulls":8},"победитель"]
[null,1088,{"$nulls":8},"победитель"]
[null,1089,{"$nulls":8},"победитель"]
[null,1090,{"$nulls":8},"победитель"]
[null,1091,{"$nulls":8},{"$f":"IF(J1096=45,\"призер\",IF(J1096=46,\"призер\",IF(J1096=47,\"призер\",IF(J1096=48,\"призер\",IF(J1096=49,\"призер\",IF(J1096=50,\"призер\",IF(J1096=51,\"призер\",IF(J1096=52,\"призер\",IF(J1096=53,\"призер\",IF(J1096=54,\"призер\",IF(J1096=55,\"призер\",IF(J1096=56,\"призер\",IF(J1096=57,\"призер\",IF(J1096=58,\"призер\",IF(J1096=59,\"призер\",\"победитель\")))))))))))))))","v":"победитель"}]
[null,1092,{"$nulls":8},"победитель"]
[null,1093,{"$nulls":8},"победитель"]
[null,1094,{"$nulls":8},"победитель"]
[null,1095,{"$nulls":8},"победитель"]
[null,1096,{"$nulls":8},"победитель"]
[null,1097,{"$nulls":8},"победитель"]
[null,1098,{"$nulls":8},"победитель"]
[null,1099,{"$nulls":8},"победитель"]
[null,1100,{"$nulls":8},"победитель"]
[null,1101,{"$nulls":8},"победитель"]
[null,1102,{"$nulls":8},"победитель"]
[null,1103,{"$nulls":8},"победитель"]
[null,1104,{"$nulls":8},"победитель"]
[null,1105,{"$nulls":8},"победитель"]
[null,1106,{"$nulls":8},"победитель"]
[null,1107,{"$nulls":8},"победитель"]
[null,1108,{"$nulls":8},"победитель"]
[null,1109,{"$nulls":8},"победитель"]
[null,1110,{"$nulls":8},"победитель"]
[null,1111,{"$nulls":8},"победитель"]
[null,1112,{"$nulls":8},"победитель"]
[null,1113,{"$nulls":8},"победитель"]
[null,1114,{"$nulls":8},"победитель"]
[null,1115,{"$nulls":8},"победитель"]
[null,1116,{"$nulls":8},"победитель"]
[null,1117,{"$nulls":8},"победитель"]
[null,1118,{"$nulls":8},"победитель"]
[null,1119,{"$nulls":8},"победитель"]
[null,1120,{"$nulls":8},"победитель"]
[null,1121,{"$nulls":8},"победитель"]
[null,1122,{"$nulls":8},"победитель"]
[null,1123,{"$nulls":8},"победитель"]
[null,1124,{"$nulls":8},"победитель"]
[null,1125,{"$nulls":8},"победитель"]
[null,1126,{"$nulls":8},"победитель"]
[null,1127,{"$nulls":8},"победитель"]
[null,1128,{"$nulls":8},"победитель"]
[null,1129,{"$nulls":8},"победитель"]
[null,1130,{"$nulls":8},"победитель"]
[null,1131,{"$nulls":8},"победитель"]
[null,1132,{"$nulls":8},"победитель"]
[null,1133,{"$nulls":8},"победитель"]
[null,1134,{"$nulls":8},"победитель"]
[null,1135,{"$nulls":8},"победитель"]
[null,1136,{"$nulls":8},"победитель"]
[null,1137,{"$nulls":8},"победитель"]
[null,1138,{"$nulls":8},"победитель"]
[null,1139,{"$nulls":8},"победитель"]
[null,1140,{"$nulls":8},"победитель"]
[null,1141,{"$nulls":8},"победитель"]
[null,1142,{"$nulls":8},"победитель"]
[null,1143,{"$nulls":8},"победитель"]
[null,1144,{"$nulls":8},"победитель"]
[null,1145,{"$nulls":8},"победитель"]
[null,1146,{"$nulls":8},"победитель"]
[null,1147,{"$nulls":8},"победитель"]
[null,1148,{"$nulls":8},"победитель"]
[null,1149,{"$nulls":8},"победитель"]
[null,1150,{"$nulls":8},"победитель"]
[null,1151,{"$nulls":8},"победитель"]
[null,1152,{"$nulls":8},"победитель"]
[null,1153,{"$nulls":8},"победитель"]
[null,1154,{"$nulls":8},"победитель"]
[null,1155,{"$nulls":8},{"$f":"IF(J1160=45,\"призер\",IF(J1160=46,\"призер\",IF(J1160=47,\"призер\",IF(J1160=48,\"призер\",IF(J1160=49,\"призер\",IF(J1160=50,\"призер\",IF(J1160=51,\"призер\",IF(J1160=52,\"призер\",IF(J1160=53,\"призер\",IF(J1160=54,\"призер\",IF(J1160=55,\"призер\",IF(J1160=56,\"призер\",IF(J1160=57,\"призер\",IF(J1160=58,\"призер\",IF(J1160=59,\"призер\",\"победитель\")))))))))))))))","v":"победитель"}]
[null,1156,{"$nulls":8},"победитель"]
[null,1157,{"$nulls":8},"победитель"]
[null,1158,{"$nulls":8},"победитель"]
[null,1159,{"$nulls":8},"победитель"]
[null,1160,{"$nulls":8},"победитель"]
[null,1161,{"$nulls":8},"победитель"]
[null,1162,{"$nulls":8},"победитель"]
[null,1163,{"$nulls":8},"победитель"]
[null,1164,{"$nulls":8},"победитель"]
[null,1165,{"$nulls":8},"победитель"]
[null,1166,{"$nulls":8},"победитель"]
[null,1167,{"$nulls":8},"победитель"]
[null,1168,{"$nulls":8},"победитель"]
[null,1169,{"$nulls":8},"победитель"]
[null,1170,{"$nulls":8},"победитель"]
[null,1171,{"$nulls":8},"победитель"]
[null,1172,{"$nulls":8},"победитель"]
[null,1173,{"$nulls":8},"победитель"]
[null,1174,{"$nulls":8},"победитель"]
[null,1175,{"$nulls":8},"победитель"]
[null,1176,{"$nulls":8},"победитель"]
[null,1177,{"$nulls":8},"победитель"]
[null,1178,{"$nulls":8},"победитель"]
[null,1179,{"$nulls":8},"победитель"]
[null,1180,{"$nulls":8},"победитель"]
[null,1181,{"$nulls":8},"победитель"]
[null,1182,{"$nulls":8},"победитель"]
[null,1183,{"$nulls":8},"победитель"]
[null,1184,{"$nulls":8},"победитель"]
[null,1185,{"$nulls":8},"победитель"]
[null,1186,{"$nulls":8},"победитель"]
[null,1187,{"$nulls":8},"победитель"]
[null,1188,{"$nulls":8},"победитель"]
[null,1189,{"$nulls":8},"победитель"]
[null,1190,{"$nulls":8},"победитель"]
[null,1191,{"$nulls":8},"победитель"]
[null,1192,{"$nulls":8},"победитель"]
[null,1193,{"$nulls":8},"победитель"]
[null,1194,{"$nulls":8},"победитель"]
[null,1195,{"$nulls":8},"победитель"]
[null,1196,{"$nulls":8},"победитель"]
[null,1197,{"$nulls":8},"победитель"]
[null,1198,{"$nulls":8},"победитель"]
[null,1199,{"$nulls":8},"победитель"]
[null,1200,{"$nulls":8},"победитель"]
[null,1201,{"$nulls":8},"победитель"]
[null,1202,{"$nulls":8},"победитель"]
[null,1203,{"$nulls":8},"победитель"]
[null,1204,{"$nulls":8},"победитель"]
[null,1205,{"$nulls":8},"победитель"]
[null,1206,{"$nulls":8},"победитель"]
[null,1207,{"$nulls":8},"победитель"]
[null,1208,{"$nulls":8},"победитель"]
[null,1209,{"$nulls":8},"победитель"]
[null,1210,{"$nulls":8},"победитель"]
[null,1211,{"$nulls":8},"победитель"]
[null,1212,{"$nulls":8},"победитель"]
[null,1213,{"$nulls":8},"победитель"]
[null,1214,{"$nulls":8},"победитель"]
[null,1215,{"$nulls":8},"победитель"]
[null,1216,{"$nulls":8},"победитель"]
[null,1217,{"$nulls":8},"победитель"]
[null,1218,{"$nulls":8},"победитель"]
[null,1219,{"$nulls":8},{"$f":"IF(J1224=45,\"призер\",IF(J1224=46,\"призер\",IF(J1224=47,\"призер\",IF(J1224=48,\"призер\",IF(J1224=49,\"призер\",IF(J1224=50,\"призер\",IF(J1224=51,\"призер\",IF(J1224=52,\"призер\",IF(J1224=53,\"призер\",IF(J1224=54,\"призер\",IF(J1224=55,\"призер\",IF(J1224=56,\"призер\",IF(J1224=57,\"призер\",IF(J1224=58,\"призер\",IF(J1224=59,\"призер\",\"победитель\")))))))))))))))","v":"победитель"}]
[null,1220,{"$nulls":8},"победитель"]
[null,1221,{"$nulls":8},"победитель"]
[null,1222,{"$nulls":8},"победитель"]
[null,1223,{"$nulls":8},"победитель"]
[null,1224,{"$nulls":8},"победитель"]
[null,1225,{"$nulls":8},"победитель"]
[null,1226,{"$nulls":8},"победитель"]
[null,1227,{"$nulls":8},"победитель"]
[null,1228,{"$nulls":8},"победитель"]
[null,1229,{"$nulls":8},"победитель"]
[null,1230,{"$nulls":8},"победитель"]
[null,1231,{"$nulls":8},"победитель"]
[null,1232,{"$nulls":8},"победитель"]
[null,1233,{"$nulls":8},"победитель"]
[null,1234,{"$nulls":8},"победитель"]
[null,1235,{"$nulls":8},"победитель"]
[null,1236,{"$nulls":8},"победитель"]
[null,1237,{"$nulls":8},"победитель"]
[null,1238,{"$nulls":8},"победитель"]
[null,1239,{"$nulls":8},"победитель"]
[null,1240,{"$nulls":8},"победитель"]
[null,1241,{"$nulls":8},"победитель"]
[null,1242,{"$nulls":8},"победитель"]
[null,1243,{"$nulls":8},"победитель"]
[null,1244,{"$nulls":8},"победитель"]
[null,1245,{"$nulls":8},"победитель"]
[null,1246,{"$nulls":8},"победитель"]
[null,1247,{"$nulls":8},"победитель"]
[null,1248,{"$nulls":8},"победитель"]
[null,1249,{"$nulls":8},"победитель"]
[null,1250,{"$nulls":8},"победитель"]
[null,1251,{"$nulls":8},"победитель"]
[null,1252,{"$nulls":8},"победитель"]
[null,1253,{"$nulls":8},"победитель"]
[null,1254,{"$nulls":8},"победитель"]
[null,1255,{"$nulls":8},"победитель"]
[null,1256,{"$nulls":8},"победитель"]
[null,1257,{"$nulls":8},"победитель"]
[null,1258,{"$nulls":8},"победитель"]
[null,1259,{"$nulls":8},"победитель"]
[null,1260,{"$nulls":8},"победитель"]
[null,1261,{"$nulls":8},"победитель"]
[null,1262,{"$nulls":8},"победитель"]
[null,1263,{"$nulls":8},"победитель"]
[null,1264,{"$nulls":8},"победитель"]
[null,1265,{"$nulls":8},"победитель"]
[null,1266,{"$nulls":8},"победитель"]
[null,1267,{"$nulls":8},"победитель"]
[null,1268,{"$nulls":8},"победитель"]
[null,1269,{"$nulls":8},"победитель"]
[null,1270,{"$nulls":8},"победитель"]
[null,1271,{"$nulls":8},"победитель"]
[null,1272,{"$nulls":8},"победитель"]
[null,1273,{"$nulls":8},"победитель"]
[null,1274,{"$nulls":8},"победитель"]
[null,1275,{"$nulls":8},"победитель"]
[null,1276,{"$nulls":8},"победитель"]
[null,1277,{"$nulls":8},"победитель"]
[null,1278,{"$nulls":8},"победитель"]
[null,1279,{"$nulls":8},"победитель"]
[null,1280,{"$nulls":8},"победитель"]
[null,1281,{"$nulls":8},"победитель"]
[null,1282,{"$nulls":8},"победитель"]
[null,1283,{"$nulls":8},{"$f":"IF(J1288=45,\"призер\",IF(J1288=46,\"призер\",IF(J1288=47,\"призер\",IF(J1288=48,\"призер\",IF(J1288=49,\"призер\",IF(J1288=50,\"призер\",IF(J1288=51,\"призер\",IF(J1288=52,\"призер\",IF(J1288=53,\"призер\",IF(J1288=54,\"призер\",IF(J1288=55,\"призер\",IF(J1288=56,\"призер\",IF(J1288=57,\"призер\",IF(J1288=58,\"призер\",IF(J1288=59,\"призер\",\"победитель\")))))))))))))))","v":"победитель"}]
[null,1284,{"$nulls":8},"победитель"]
[null,1285,{"$nulls":8},"победитель"]
[null,1286,{"$nulls":8},"победитель"]
[null,1287,{"$nulls":8},"победитель"]
[null,1288,{"$nulls":8},"победитель"]
[null,1289,{"$nulls":8},"победитель"]
[null,1290,{"$nulls":8},"победитель"]
[null,1291,{"$nulls":8},"победитель"]
[null,1292,{"$nulls":8},"победитель"]
[null,1293,{"$nulls":8},"победитель"]
[null,1294,{"$nulls":8},"победитель"]
[null,1295,{"$nulls":8},"победитель"]
[null,1296,{"$nulls":8},"победитель"]
[null,1297,{"$nulls":8},"победитель"]
[null,1298,{"$nulls":8},"победитель"]
[null,1299,{"$nulls":8},"победитель"]
[null,1300,{"$nulls":8},"победитель"]
[null,1301,{"$nulls":8},"победитель"]
[null,1302,{"$nulls":8},"победитель"]
[null,1303,{"$nulls":8},"победитель"]
[null,1304,{"$nulls":8},"победитель"]
[null,1305,{"$nulls":8},"победитель"]
[null,1306,{"$nulls":8},"победитель"]
[null,1307,{"$nulls":8},"победитель"]
[null,1308,{"$nulls":8},"победитель"]
[null,1309,{"$nulls":8},"победитель"]
[null,1310,{"$nulls":8},"победитель"]
[null,1311,{"$nulls":8},"победитель"]
[null,1312,{"$nulls":8},"победитель"]
[null,1313,{"$nulls":8},"победитель"]
[null,1314,{"$nulls":8},"победитель"]
[null,1315,{"$nulls":8},"победитель"]
[null,1316,{"$nulls":8},"победитель"]
[null,1317,{"$nulls":8},"победитель"]
[null,1318,{"$nulls":8},"победитель"]
[null,1319,{"$nulls":8},"победитель"]
[null,1320,{"$nulls":8},"победитель"]
[null,1321,{"$nulls":8},"победитель"]
[null,1322,{"$nulls":8},"победитель"]
[null,1323,{"$nulls":8},"победитель"]
[null,1324,{"$nulls":8},"победитель"]
[null,1325,{"$nulls":8},"победитель"]
[null,1326,{"$nulls":8},"победитель"]
[null,1327,{"$nulls":8},"победитель"]
[null,1328,{"$nulls":8},"победитель"]
[null,1329,{"$nulls":8},"победитель"]
[null,1330,{"$nulls":8},"победитель"]
[null,1331,{"$nulls":8},"победитель"]
[null,1332,{"$nulls":8},"победитель"]
[null,1333,{"$nulls":8},"победитель"]
[null,1334,{"$nulls":8},"победитель"]
[null,1335,{"$nulls":8},"победитель"]
[null,1336,{"$nulls":8},"победитель"]
[null,1337,{"$nulls":8},"победитель"]
[null,1338,{"$nulls":8},"победитель"]
[null,1339,{"$nulls":8},"победитель"]
[null,1340,{"$nulls":8},"победитель"]
[null,1341,{"$nulls":8},"победитель"]
[null,1342,{"$nulls":8},"победитель"]
[null,1343,{"$nulls":8},"победитель"]
[null,1344,{"$nulls":8},"победитель"]
[null,1345,{"$nulls":8},"победитель"]
[null,1346,{"$nulls":8},"победитель"]
[null,1347,{"$nulls":8},{"$f":"IF(J1352=45,\"призер\",IF(J1352=46,\"призер\",IF(J1352=47,\"призер\",IF(J1352=48,\"призер\",IF(J1352=49,\"призер\",IF(J1352=50,\"призер\",IF(J1352=51,\"призер\",IF(J1352=52,\"призер\",IF(J1352=53,\"призер\",IF(J1352=54,\"призер\",IF(J1352=55,\"призер\",IF(J1352=56,\"призер\",IF(J1352=57,\"призер\",IF(J1352=58,\"призер\",IF(J1352=59,\"призер\",\"победитель\")))))))))))))))","v":"победитель"}]
[null,1348,{"$nulls":8},"победитель"]
[null,1349,{"$nulls":8},"победитель"]
[null,1350,{"$nulls":8},"победитель"]
[null,1351,{"$nulls":8},"победитель"]
[null,1352,{"$nulls":8},"победитель"]
[null,1353,{"$nulls":8},"победитель"]
[null,1354,{"$nulls":8},"победитель"]
[null,1355,{"$nulls":8},"победитель"]
[null,1356,{"$nulls":8},"победитель"]
[null,1357,{"$nulls":8},"победитель"]
[null,1358,{"$nulls":8},"победитель"]
[null,1359,{"$nulls":8},"победитель"]
[null,1360,{"$nulls":8},"победитель"]
[null,1361,{"$nulls":8},"победитель"]
[null,1362,{"$nulls":8},"победитель"]
[null,1363,{"$nulls":8},"победитель"]
[null,1364,{"$nulls":8},"победитель"]
[null,1365,{"$nulls":8},"победитель"]
[null,1366,{"$nulls":8},"победитель"]
[null,1367,{"$nulls":8},"победитель"]
[null,1368,{"$nulls":8},"победитель"]
[null,1369,{"$nulls":8},"победитель"]
[null,1370,{"$nulls":8},"победитель"]
[null,1371,{"$nulls":8},"победитель"]
[null,1372,{"$nulls":8},"победитель"]
[null,1373,{"$nulls":8},"победитель"]
[null,1374,{"$nulls":8},"победитель"]
[null,1375,{"$nulls":8},"победитель"]
[null,1376,{"$nulls":8},"победитель"]
[null,1377,{"$nulls":8},"победитель"]
[null,1378,{"$nulls":8},"победитель"]
[null,1379,{"$nulls":8},"победитель"]
[null,1380,{"$nulls":8},"победитель"]
[null,1381,{"$nulls":8},"победитель"]
[null,1382,{"$nulls":8},"победитель"]
[null,1383,{"$nulls":8},"победитель"]
[null,1384,{"$nulls":8},"победитель"]
[null,1385,{"$nulls":8},"победитель"]
[null,1386,{"$nulls":8},"победитель"]
[null,1387,{"$nulls":8},"победитель"]
[null,1388,{"$nulls":8},"победитель"]
[null,1389,{"$nulls":8},"победитель"]
[null,1390,{"$nulls":8},"победитель"]
[null,1391,{"$nulls":8},"победитель"]
[null,1392,{"$nulls":8},"победитель"]
[null,1393,{"$nulls":8},"победитель"]
[null,1394,{"$nulls":8},"победитель"]
[null,1395,{"$nulls":8},"победитель"]
[null,1396,{"$nulls":8},"победитель"]
[null,1397,{"$nulls":8},"победитель"]
[null,1398,{"$nulls":8},"победитель"]
[null,1399,{"$nulls":8},"победитель"]
[null,1400,{"$nulls":8},"победитель"]
[null,1401,{"$nulls":8},"победитель"]
[null,1402,{"$nulls":8},"победитель"]
[null,1403,{"$nulls":8},"победитель"]
[null,1404,{"$nulls":8},"победитель"]
[null,1405,{"$nulls":8},"победитель"]
[null,1406,{"$nulls":8},"победитель"]
[null,1407,{"$nulls":8},"победитель"]
[null,1408,{"$nulls":8},"победитель"]
[null,1409,{"$nulls":8},"победитель"]
[null,1410,{"$nulls":8},"победитель"]
[null,1411,{"$nulls":8},{"$f":"IF(J1416=45,\"призер\",IF(J1416=46,\"призер\",IF(J1416=47,\"призер\",IF(J1416=48,\"призер\",IF(J1416=49,\"призер\",IF(J1416=50,\"призер\",IF(J1416=51,\"призер\",IF(J1416=52,\"призер\",IF(J1416=53,\"призер\",IF(J1416=54,\"призер\",IF(J1416=55,\"призер\",IF(J1416=56,\"призер\",IF(J1416=57,\"призер\",IF(J1416=58,\"призер\",IF(J1416=59,\"призер\",\"победитель\")))))))))))))))","v":"победитель"}]
[null,1412,{"$nulls":8},"победитель"]
[null,1413,{"$nulls":8},"победитель"]
[null,1414,{"$nulls":8},"победитель"]
[null,1415,{"$nulls":8},"победитель"]
[null,1416,{"$nulls":8},"победитель"]
[null,1417,{"$nulls":8},"победитель"]
[null,1418,{"$nulls":8},"победитель"]
[null,1419,{"$nulls":8},"победитель"]
[null,1420,{"$nulls":8},"победитель"]
[null,1421,{"$nulls":8},"победитель"]
[null,1422,{"$nulls":8},"победитель"]
[null,1423,{"$nulls":8},"победитель"]
[null,1424,{"$nulls":8},"победитель"]
[null,1425,{"$nulls":8},"победитель"]
[null,1426,{"$nulls":8},"победитель"]
[null,1427,{"$nulls":8},"победитель"]
[null,1428,{"$nulls":8},"победитель"]
[null,1429,{"$nulls":8},"победитель"]
[null,1430,{"$nulls":8},"победитель"]
[null,1431,{"$nulls":8},"победитель"]
[null,1432,{"$nulls":8},"победитель"]
[null,1433,{"$nulls":8},"победитель"]
[null,1434,{"$nulls":8},"победитель"]
[null,1435,{"$nulls":8},"победитель"]
[null,1436,{"$nulls":8},"победитель"]
[null,1437,{"$nulls":8},"победитель"]
[null,1438,{"$nulls":8},"победитель"]
[null,1439,{"$nulls":8},"победитель"]
[null,1440,{"$nulls":8},"победитель"]
[null,1441,{"$nulls":8},"победитель"]
[null,1442,{"$nulls":8},"победитель"]
[null,1443,{"$nulls":8},"победитель"]
[null,1444,{"$nulls":8},"победитель"]
[null,1445,{"$nulls":8},"победитель"]
[null,1446,{"$nulls":8},"победитель"]
[null,1447,{"$nulls":8},"победитель"]
[null,1448,{"$nulls":8},"победитель"]
[null,1449,{"$nulls":8},"победитель"]
[null,1450,{"$nulls":8},"победитель"]
[null,1451,{"$nulls":8},"победитель"]
[null,1452,{"$nulls":8},"победитель"]
[null,1453,{"$nulls":8},"победитель"]
[null,1454,{"$nulls":8},"победитель"]
[null,1455,{"$nulls":8},"победитель"]
[null,1456,{"$nulls":8},"победитель"]
[null,1457,{"$nulls":8},"победитель"]
[null,1458,{"$nulls":8},"победитель"]
[null,1459,{"$nulls":8},"победитель"]
[null,1460,{"$nulls":8},"победитель"]
[null,1461,{"$nulls":8},"победитель"]
[null,1462,{"$nulls":8},"победитель"]
[null,1463,{"$nulls":8},"победитель"]
[null,1464,{"$nulls":8},"победитель"]
[null,1465,{"$nulls":8},"победитель"]
[null,1466,{"$nulls":8},"победитель"]
[null,1467,{"$nulls":8},"победитель"]
[null,1468,{"$nulls":8},"победитель"]
[null,1469,{"$nulls":8},"победитель"]
[null,1470,{"$nulls":8},"победитель"]
[null,1471,{"$nulls":8},"победитель"]
[null,1472,{"$nulls":8},"победитель"]
[null,1473,{"$nulls":8},"победитель"]
[null,1474,{"$nulls":8},"победитель"]
[null,1475,{"$nulls":8},{"$f":"IF(J1480=45,\"призер\",IF(J1480=46,\"призер\",IF(J1480=47,\"призер\",IF(J1480=48,\"призер\",IF(J1480=49,\"призер\",IF(J1480=50,\"призер\",IF(J1480=51,\"призер\",IF(J1480=52,\"призер\",IF(J1480=53,\"призер\",IF(J1480=54,\"призер\",IF(J1480=55,\"призер\",IF(J1480=56,\"призер\",IF(J1480=57,\"призер\",IF(J1480=58,\"призер\",IF(J1480=59,\"призер\",\"победитель\")))))))))))))))","v":"победитель"}]
[null,1476,{"$nulls":8},"победитель"]
[null,1477,{"$nulls":8},"победитель"]
[null,1478,{"$nulls":8},"победитель"]
[null,1479,{"$nulls":8},"победитель"]
[null,1480,{"$nulls":8},"победитель"]
[null,1481,{"$nulls":8},"победитель"]
[null,1482,{"$nulls":8},"победитель"]
[null,1483,{"$nulls":8},"победитель"]
[null,1484,{"$nulls":8},"победитель"]
[null,1485,{"$nulls":8},"победитель"]
[null,1486,{"$nulls":8},"победитель"]
[null,1487,{"$nulls":8},"победитель"]
[null,1488,{"$nulls":8},"победитель"]
[null,1489,{"$nulls":8},"победитель"]
[null,1490,{"$nulls":8},"победитель"]
[null,1491,{"$nulls":8},"победитель"]
[null,1492,{"$nulls":8},"победитель"]
[null,1493,{"$nulls":8},"победитель"]
[null,1494,{"$nulls":8},"победитель"]
[null,1495,{"$nulls":8},"победитель"]
[null,1496,{"$nulls":8},"победитель"]
[null,1497,{"$nulls":8},"победитель"]
[null,1498,{"$nulls":8},"победитель"]
[null,1499,{"$nulls":8},"победитель"]
[null,1500,{"$nulls":8},"победитель"]
[null,1501,{"$nulls":8},"победитель"]
[null,1502,{"$nulls":8},"победитель"]
[null,1503,{"$nulls":8},"победитель"]
[null,1504,{"$nulls":8},"победитель"]
[null,1505,{"$nulls":8},"победитель"]
[null,1506,{"$nulls":8},"победитель"]
[null,1507,{"$nulls":8},"победитель"]
[null,1508,{"$nulls":8},"победитель"]
[null,1509,{"$nulls":8},"победитель"]
[null,1510,{"$nulls":8},"победитель"]
[null,1511,{"$nulls":8},"победитель"]
[null,1512,{"$nulls":8},"победитель"]
[null,1513,{"$nulls":8},"победитель"]
[null,1514,{"$nulls":8},"победитель"]
[null,1515,{"$nulls":8},"победитель"]
[null,1516,{"$nulls":8},"победитель"]
[null,1517,{"$nulls":8},"победитель"]
[null,1518,{"$nulls":8},"победитель"]
[null,1519,{"$nulls":8},"победитель"]
[null,1520,{"$nulls":8},"победитель"]
[null,1521,{"$nulls":8},"победитель"]
[null,1522,{"$nulls":8},"победитель"]
[null,1523,{"$nulls":8},"победитель"]
[null,1524,{"$nulls":8},"победитель"]
[null,1525,{"$nulls":8},"победитель"]
[null,1526,{"$nulls":8},"победитель"]
[null,1527,{"$nulls":8},"победитель"]
[null,1528,{"$nulls":8},"победитель"]
[null,1529,{"$nulls":8},"победитель"]
[null,1530,{"$nulls":8},"победитель"]
[null,1531,{"$nulls":8},"победитель"]
[null,1532,{"$nulls":8},"победитель"]
[null,1533,{"$nulls":8},"победитель"]
[null,1534,{"$nulls":8},"победитель"]
[null,1535,{"$nulls":8},"победитель"]
[null,1536,{"$nulls":8},"победитель"]
[null,1537,{"$nulls":8},"победитель"]
[null,1538,{"$nulls":8},"победитель"]
[null,1539,{"$nulls":8},{"$f":"IF(J1544=45,\"призер\",IF(J1544=46,\"призер\",IF(J1544=47,\"призер\",IF(J1544=48,\"призер\",IF(J1544=49,\"призер\",IF(J1544=50,\"призер\",IF(J1544=51,\"призер\",IF(J1544=52,\"призер\",IF(J1544=53,\"призер\",IF(J1544=54,\"призер\",IF(J1544=55,\"призер\",IF(J1544=56,\"призер\",IF(J1544=57,\"призер\",IF(J1544=58,\"призер\",IF(J1544=59,\"призер\",\"победитель\")))))))))))))))","v":"победитель"}]
[null,1540,{"$nulls":8},"победитель"]
[null,1541,{"$nulls":8},"победитель"]
[null,1542,{"$nulls":8},"победитель"]
[null,1543,{"$nulls":8},"победитель"]
[null,1544,{"$nulls":8},"победитель"]
[null,1545,{"$nulls":8},"победитель"]
[null,1546,{"$nulls":8},"победитель"]
[null,1547,{"$nulls":8},"победитель"]
[null,1548,{"$nulls":8},"победитель"]
[null,1549,{"$nulls":8},"победитель"]
[null,1550,{"$nulls":8},"победитель"]
[null,1551,{"$nulls":8},"победитель"]
[null,1552,{"$nulls":8},"победитель"]
[null,1553,{"$nulls":8},"победитель"]
[null,1554,{"$nulls":8},"победитель"]
[null,1555,{"$nulls":8},"победитель"]
[null,1556,{"$nulls":8},"победитель"]
[null,1557,{"$nulls":8},"победитель"]
[null,1558,{"$nulls":8},"победитель"]
[null,1559,{"$nulls":8},"победитель"]
[null,1560,{"$nulls":8},"победитель"]
[null,1561,{"$nulls":8},"победитель"]
[null,1562,{"$nulls":8},"победитель"]
[null,1563,{"$nulls":8},"победитель"]
[null,1564,{"$nulls":8},"победитель"]
[null,1565,{"$nulls":8},"победитель"]
[null,1566,{"$nulls":8},"победитель"]
[null,1567,{"$nulls":8},"победитель"]
[null,1568,{"$nulls":8},"победитель"]
[null,1569,{"$nulls":8},"победитель"]
[null,1570,{"$nulls":8},"победитель"]
[null,1571,{"$nulls":8},"победитель"]
[null,1572,{"$nulls":8},"победитель"]
[null,1573,{"$nulls":8},"победитель"]
[null,1574,{"$nulls":8},"победитель"]
[null,1575,{"$nulls":8},"победитель"]
[null,1576,{"$nulls":8},"победитель"]
[null,1577,{"$nulls":8},"победитель"]
[null,1578,{"$nulls":8},"победитель"]
[null,1579,{"$nulls":8},"победитель"]
[null,1580,{"$nulls":8},"победитель"]
[null,1581,{"$nulls":8},"победитель"]
[null,1582,{"$nulls":8},"победитель"]
[null,1583,{"$nulls":8},"победитель"]
[null,1584,{"$nulls":8},"победитель"]
[null,1585,{"$nulls":8},"победитель"]
[null,1586,{"$nulls":8},"победитель"]
[null,1587,{"$nulls":8},"победитель"]
[null,1588,{"$nulls":8},"победитель"]
[null,1589,{"$nulls":8},"победитель"]
[null,1590,{"$nulls":8},"победитель"]
[null,1591,{"$nulls":8},"победитель"]
[null,1592,{"$nulls":8},"победитель"]
[null,1593,{"$nulls":8},"победитель"]
[null,1594,{"$nulls":8},"победитель"]
[null,1595,{"$nulls":8},"победитель"]
[null,1596,{"$nulls":8},"победитель"]
[null,1597,{"$nulls":8},"победитель"]
[null,1598,{"$nulls":8},"победитель"]
[null,1599,{"$nulls":8},"победитель"]
[null,1600,{"$nulls":8},"победитель"]
[null,1601,{"$nulls":8},"победитель"]
[null,1602,{"$nulls":8},"победитель"]
[null,1603,{"$nulls":8},{"$f":"IF(J1608=45,\"призер\",IF(J1608=46,\"призер\",IF(J1608=47,\"призер\",IF(J1608=48,\"призер\",IF(J1608=49,\"призер\",IF(J1608=50,\"призер\",IF(J1608=51,\"призер\",IF(J1608=52,\"призер\",IF(J1608=53,\"призер\",IF(J1608=54,\"призер\",IF(J1608=55,\"призер\",IF(J1608=56,\"призер\",IF(J1608=57,\"призер\",IF(J1608=58,\"призер\",IF(J1608=59,\"призер\",\"победитель\")))))))))))))))","v":"победитель"}]
[null,1604,{"$nulls":8},"победитель"]
[null,1605,{"$nulls":8},"победитель"]
[null,1606,{"$nulls":8},"победитель"]
[null,1607,{"$nulls":8},"победитель"]
[null,1608,{"$nulls":8},"победитель"]
[null,1609,{"$nulls":8},"победитель"]
[null,1610,{"$nulls":8},"победитель"]
[null,1611,{"$nulls":8},"победитель"]
[null,1612,{"$nulls":8},"победитель"]
[null,1613,{"$nulls":8},"победитель"]
[null,1614,{"$nulls":8},"победитель"]
[null,1615,{"$nulls":8},"победитель"]
[null,1616,{"$nulls":8},"победитель"]
[null,1617,{"$nulls":8},"победитель"]
[null,1618,{"$nulls":8},"победитель"]
[null,1619,{"$nulls":8},"победитель"]
[null,1620,{"$nulls":8},"победитель"]
[null,1621,{"$nulls":8},"победитель"]
[null,1622,{"$nulls":8},"победитель"]
[null,1623,{"$nulls":8},"победитель"]
[null,1624,{"$nulls":8},"победитель"]
[null,1625,{"$nulls":8},"победитель"]
[null,1626,{"$nulls":8},"победитель"]
[null,1627,{"$nulls":8},"победитель"]
[null,1628,{"$nulls":8},"победитель"]
[null,1629,{"$nulls":8},"победитель"]
[null,1630,{"$nulls":8},"победитель"]
[null,1631,{"$nulls":8},"победитель"]
[null,1632,{"$nulls":8},"победитель"]
[null,1633,{"$nulls":8},"победитель"]
[null,1634,{"$nulls":8},"победитель"]
[null,1635,{"$nulls":8},"победитель"]
[null,1636,{"$nulls":8},"победитель"]
[null,1637,{"$nulls":8},"победитель"]
[null,1638,{"$nulls":8},"победитель"]
[null,1639,{"$nulls":8},"победитель"]
[null,1640,{"$nulls":8},"победитель"]
[null,1641,{"$nulls":8},"победитель"]
[null,1642,{"$nulls":8},"победитель"]
[null,1643,{"$nulls":8},"победитель"]
[null,1644,{"$nulls":8},"победитель"]
[null,1645,{"$nulls":8},"победитель"]
[null,1646,{"$nulls":8},"победитель"]
[null,1647,{"$nulls":8},"победитель"]
[null,1648,{"$nulls":8},"победитель"]
[null,1649,{"$nulls":8},"победитель"]
[null,1650,{"$nulls":8},"победитель"]
[null,1651,{"$nulls":8},"победитель"]
[null,1652,{"$nulls":8},"победитель"]
[null,1653,{"$nulls":8},"победитель"]
[null,1654,{"$nulls":8},"победитель"]
[null,1655,{"$nulls":8},"победитель"]
[null,1656,{"$nulls":8},"победитель"]
[null,1657,{"$nulls":8},"победитель"]
[null,1658,{"$nulls":8},"победитель"]
[null,1659,{"$nulls":8},"победитель"]
[null,1660,{"$nulls":8},"победитель"]
[null,1661,{"$nulls":8},"победитель"]
[null,1662,{"$nulls":8},"победитель"]
[null,1663,{"$nulls":8},"победитель"]
[null,1664,{"$nulls":8},"победитель"]
[null,1665,{"$nulls":8},"победитель"]
[null,1666,{"$nulls":8},"победитель"]
[null,1667,{"$nulls":8},{"$f":"IF(J1672=45,\"призер\",IF(J1672=46,\"призер\",IF(J1672=47,\"призер\",IF(J1672=48,\"призер\",IF(J1672=49,\"призер\",IF(J1672=50,\"призер\",IF(J1672=51,\"призер\",IF(J1672=52,\"призер\",IF(J1672=53,\"призер\",IF(J1672=54,\"призер\",IF(J1672=55,\"призер\",IF(J1672=56,\"призер\",IF(J1672=57,\"призер\",IF(J1672=58,\"призер\",IF(J1672=59,\"призер\",\"победитель\")))))))))))))))","v":"победитель"}]
[null,1668,{"$nulls":8},"победитель"]
[null,1669,{"$nulls":8},"победитель"]
[null,1670,{"$nulls":8},"победитель"]
[null,1671,{"$nulls":8},"победитель"]
[null,1672,{"$nulls":8},"победитель"]
[null,1673,{"$nulls":8},"победитель"]
[null,1674,{"$nulls":8},"победитель"]
[null,1675,{"$nulls":8},"победитель"]
[null,1676,{"$nulls":8},"победитель"]
[null,1677,{"$nulls":8},"победитель"]
[null,1678,{"$nulls":8},"победитель"]
[null,1679,{"$nulls":8},"победитель"]
[null,1680,{"$nulls":8},"победитель"]
[null,1681,{"$nulls":8},"победитель"]
[null,1682,{"$nulls":8},"победитель"]
[null,1683,{"$nulls":8},"победитель"]
[null,1684,{"$nulls":8},"победитель"]
[null,1685,{"$nulls":8},"победитель"]
[null,1686,{"$nulls":8},"победитель"]
[null,1687,{"$nulls":8},"победитель"]
[null,1688,{"$nulls":8},"победитель"]
[null,1689,{"$nulls":8},"победитель"]
[null,1690,{"$nulls":8},"победитель"]
[null,1691,{"$nulls":8},"победитель"]
[null,1692,{"$nulls":8},"победитель"]
[null,1693,{"$nulls":8},"победитель"]
[null,1694,{"$nulls":8},"победитель"]
[null,1695,{"$nulls":8},"победитель"]
[null,1696,{"$nulls":8},"победитель"]
[null,1697,{"$nulls":8},"победитель"]
[null,1698,{"$nulls":8},"победитель"]
[null,1699,{"$nulls":8},"победитель"]
[null,1700,{"$nulls":8},"победитель"]
[null,1701,{"$nulls":8},"победитель"]
[null,1702,{"$nulls":8},"победитель"]
[null,1703,{"$nulls":8},"победитель"]
[null,1704,{"$nulls":8},"победитель"]
[null,1705,{"$nulls":8},"победитель"]
[null,1706,{"$nulls":8},"победитель"]
[null,1707,{"$nulls":8},"победитель"]
[null,1708,{"$nulls":8},"победитель"]
[null,1709,{"$nulls":8},"победитель"]
[null,1710,{"$nulls":8},"победитель"]
[null,1711,{"$nulls":8},"победитель"]
[null,1712,{"$nulls":8},"победитель"]
[null,1713,{"$nulls":8},"победитель"]
[null,1714,{"$nulls":8},"победитель"]
[null,1715,{"$nulls":8},"победитель"]
[null,1716,{"$nulls":8},"победитель"]
[null,1717,{"$nulls":8},"победитель"]
[null,1718,{"$nulls":8},"победитель"]
[null,1719,{"$nulls":8},"победитель"]
[null,1720,{"$nulls":8},"победитель"]
[null,1721,{"$nulls":8},"победитель"]
[null,1722,{"$nulls":8},"победитель"]
[null,1723,{"$nulls":8},"победитель"]
[null,1724,{"$nulls":8},"победитель"]
[null,1725,{"$nulls":8},"победитель"]
[null,1726,{"$nulls":8},"победитель"]
[null,1727,{"$nulls":8},"победитель"]
[null,1728,{"$nulls":8},"победитель"]
[null,1729,{"$nulls":8},"победитель"]
[null,1730,{"$nulls":8},"победитель"]
[null,1731,{"$nulls":8},{"$f":"IF(J1736=45,\"призер\",IF(J1736=46,\"призер\",IF(J1736=47,\"призер\",IF(J1736=48,\"призер\",IF(J1736=49,\"призер\",IF(J1736=50,\"призер\",IF(J1736=51,\"призер\",IF(J1736=52,\"призер\",IF(J1736=53,\"призер\",IF(J1736=54,\"призер\",IF(J1736=55,\"призер\",IF(J1736=56,\"призер\",IF(J1736=57,\"призер\",IF(J1736=58,\"призер\",IF(J1736=59,\"призер\",\"победитель\")))))))))))))))","v":"победитель"}]
[null,1732,{"$nulls":8},"победитель"]
[null,1733,{"$nulls":8},"победитель"]
[null,1734,{"$nulls":8},"победитель"]
[null,1735,{"$nulls":8},"победитель"]
[null,1736,{"$nulls":8},"победитель"]
[null,1737,{"$nulls":8},"победитель"]
[null,1738,{"$nulls":8},"победитель"]
[null,1739,{"$nulls":8},"победитель"]
[null,1740,{"$nulls":8},"победитель"]
[null,1741,{"$nulls":8},"победитель"]
[null,1742,{"$nulls":8},"победитель"]
[null,1743,{"$nulls":8},"победитель"]
[null,1744,{"$nulls":8},"победитель"]
[null,1745,{"$nulls":8},"победитель"]
[null,1746,{"$nulls":8},"победитель"]
[null,1747,{"$nulls":8},"победитель"]
[null,1748,{"$nulls":8},"победитель"]
[null,1749,{"$nulls":8},"победитель"]
[null,1750,{"$nulls":8},"победитель"]
[null,1751,{"$nulls":8},"победитель"]
[null,1752,{"$nulls":8},"победитель"]
[null,1753,{"$nulls":8},"победитель"]
[null,1754,{"$nulls":8},"победитель"]
[null,1755,{"$nulls":8},"победитель"]
[null,1756,{"$nulls":8},"победитель"]
[null,1757,{"$nulls":8},"победитель"]
[null,1758,{"$nulls":8},"победитель"]
[null,1759,{"$nulls":8},"победитель"]
[null,1760,{"$nulls":8},"победитель"]
[null,1761,{"$nulls":8},"победитель"]
[null,1762,{"$nulls":8},"победитель"]
[null,1763,{"$nulls":8},"победитель"]
[null,1764,{"$nulls":8},"победитель"]
[null,1765,{"$nulls":8},"победитель"]
[null,1766,{"$nulls":8},"победитель"]
[null,1767,{"$nulls":8},"победитель"]
[null,1768,{"$nulls":8},"победитель"]
[null,1769,{"$nulls":8},"победитель"]
[null,1770,{"$nulls":8},"победитель"]
[null,1771,{"$nulls":8},"победитель"]
[null,1772,{"$nulls":8},"победитель"]
[null,1773,{"$nulls":8},"победитель"]
[null,1774,{"$nulls":8},"победитель"]
[null,1775,{"$nulls":8},"победитель"]
[null,1776,{"$nulls":8},"победитель"]
[null,1777,{"$nulls":8},"победитель"]
[null,1778,{"$nulls":8},"победитель"]
[null,1779,{"$nulls":8},"победитель"]
[null,1780,{"$nulls":8},"победитель"]
[null,1781,{"$nulls":8},"победитель"]
[null,1782,{"$nulls":8},"победитель"]
[null,1783,{"$nulls":8},"победитель"]
[null,1784,{"$nulls":8},"победитель"]
[null,1785,{"$nulls":8},"победитель"]
[null,1786,{"$nulls":8},"победитель"]
[null,1787,{"$nulls":8},"победитель"]
[null,1788,{"$nulls":8},"победитель"]
[null,1789,{"$nulls":8},"победитель"]
[null,1790,{"$nulls":8},"победитель"]
[null,1791,{"$nulls":8},"победитель"]
[null,1792,{"$nulls":8},"победитель"]
[null,1793,{"$nulls":8},"победитель"]
[null,1794,{"$nulls":8},"победитель"]
[null,1795,{"$nulls":8},{"$f":"IF(J1800=45,\"призер\",IF(J1800=46,\"призер\",IF(J1800=47,\"призер\",IF(J1800=48,\"призер\",IF(J1800=49,\"призер\",IF(J1800=50,\"призер\",IF(J1800=51,\"призер\",IF(J1800=52,\"призер\",IF(J1800=53,\"призер\",IF(J1800=54,\"призер\",IF(J1800=55,\"призер\",IF(J1800=56,\"призер\",IF(J1800=57,\"призер\",IF(J1800=58,\"призер\",IF(J1800=59,\"призер\",\"победитель\")))))))))))))))","v":"победитель"}]
[null,1796,{"$nulls":8},"победитель"]
[null,1797,{"$nulls":8},"победитель"]
[null,1798,{"$nulls":8},"победитель"]
[null,1799,{"$nulls":8},"победитель"]
[null,1800,{"$nulls":8},"победитель"]
[null,1801,{"$nulls":8},"победитель"]
[null,1802,{"$nulls":8},"победитель"]
[null,1803,{"$nulls":8},"победитель"]
[null,1804,{"$nulls":8},"победитель"]
[null,1805,{"$nulls":8},"победитель"]
[null,1806,{"$nulls":8},"победитель"]
[null,1807,{"$nulls":8},"победитель"]
[null,1808,{"$nulls":8},"победитель"]
[null,1809,{"$nulls":8},"победитель"]
[null,1810,{"$nulls":8},"победитель"]
[null,1811,{"$nulls":8},"победитель"]
[null,1812,{"$nulls":8},"победитель"]
[null,1813,{"$nulls":8},"победитель"]